Workbook

Sheet Voorrondes
A1: Toernooi 5 poules voorronde + finale poules 'beste nrs …' - Voorrondes | AY1: =COUNTA(U13:W22) -> 30 | AZ1: =COUNTA(AT13:AV22) -> 30 | BA1: =COUNTA(U25:W34) -> 30 | BB1: =COUNTA(AT25:AV34) -> 30 | BC1: =COUNTA(U38:W47) -> 30
A3: Stand | K3: Gewonnen | L3: Gelijk | M3: Verloren | N3: Saldo | O3: Stand | Z3: Gewonnen | AA3: Gelijk | AB3: Verloren | AC3: Saldo | AD3: Stand | AN3: Gewonnen | AO3: Gelijk | AP3: Verloren | AQ3: Saldo | AR3: Stand | BB3: Gewonnen | BC3: Gelijk | BD3: Verloren | BE3: Saldo | BF3: Stand | BP3: Gewonnen | BQ3: Gelijk | BR3: Verloren | BS3: Saldo
B5: Poule A | H5: V | I5: T | J5: P | P5: Poule B | W5: V | X5: T | Y5: P | AE5: Poule C | AK5: V | AL5: T | AM5: P | AS5: Poule D | AY5: V | AZ5: T | BA5: P | BG5: Poule E | BM5: V | BN5: T | BO5: P
A6: =RANK(J6,$J$6:$J$10,0) -> 3 | B6: PA TEAM 1 | H6: =SUMIF($G$13:$L$22,B6,$U$13:$U$22)+SUMIF($N$13:$S$22,B6,$W$13:$W$22) -> 11 | I6: =SUMIF($G$13:$L$22,B6,$W$13:$W$22)+SUMIF($N$13:$S$22,B6,$U$13:$U$22) -> 12 | J6: =(K6*3)+L6+(H6*0.001)-(I6*0.001)+(H6*0.00001) -> 4.99911 | K6: =SUMPRODUCT(($G$13:$L$22=B6)*($Y$13:$Y$22=3))+SUMPRODUCT(($N$13:$S$22=B6)*($AA$13:$AA$22=3)) -> 1 | L6: =SUMPRODUCT(($G$13:$L$22=B6)*($Y$13:$Y$22=1))+SUMPRODUCT(($N$13:$S$22=B6)*($AA$13:$AA$22=1)) -> 2 | M6: =SUMPRODUCT(($G$13:$L$22=B6)*($Y$13:$Y$22=0))+SUMPRODUCT(($N$13:$S$22=B6)*($AA$13:$AA$22=0)) -> 1 | N6: =H6-I6 -> -1 | O6: =RANK(Y6,$Y$6:$Y$10,0) -> 3 | P6: PB TEAM 1 | W6: =SUMIF($AF$13:$AK$22,P6,$AT$13:$AT$22)+SUMIF($AM$13:$AR$22,P6,$AV$13:$AV$22) -> 15 | X6: =SUMIF($AF$13:$AK$22,P6,$AV$13:$AV$22)+SUMIF($AM$13:$AR$22,P6,$AT$13:$AT$22) -> 20 | Y6: =(Z6*3)+AA6+(W6*0.001)-(X6*0.001)+(W6*0.00001) -> 5.99515 | Z6: =SUMPRODUCT(($AF$13:$AK$22=P6)*($AX$13:$AX$22=3))+SUMPRODUCT(($AM$13:$AR$22=P6)*($AZ$13:$AZ$22=3)) -> 2 | AA6: =SUMPRODUCT(($AF$13:$AK$22=P6)*($AX$13:$AX$22=1))+SUMPRODUCT(($AM$13:$AR$22=P6)*($AZ$13:$AZ$22=1)) -> 0 | AB6: =SUMPRODUCT(($AF$13:$AK$22=P6)*($AX$13:$AX$22=0))+SUMPRODUCT(($AM$13:$AR$22=P6)*($AZ$13:$AZ$22=0)) -> 2 | AC6: =W6-X6 -> -5 | AD6: =RANK(AM6,$AM$6:$AM$10,0) -> 2 | AE6: PC TEAM 1 | AK6: =SUMIF($G$25:$L$34,AE6,$U$25:$U$34)+SUMIF($N$25:$S$34,AE6,$W$25:$W$34) -> 24 | AL6: =SUMIF($G$25:$L$34,AE6,$W$25:$W$34)+SUMIF($N$25:$S$34,AE6,$U$25:$U$34) -> 19 | AM6: =(AN6*3)+AO6+(AK6*0.001)-(AL6*0.001)+(AK6*0.00001) -> 6.00524 | AN6: =SUMPRODUCT(($G$25:$L$34=AE6)*($Y$25:$Y$34=3))+SUMPRODUCT(($N$25:$S$34=AE6)*($AA$25:$AA$34=3)) -> 2 | AO6: =SUMPRODUCT(($G$25:$L$34=AE6)*($Y$25:$Y$34=1))+SUMPRODUCT(($N$25:$S$34=AE6)*($AA$25:$AA$34=1)) -> 0 | AP6: =SUMPRODUCT(($G$25:$L$34=AE6)*($Y$25:$Y$34=0))+SUMPRODUCT(($N$25:$S$34=AE6)*($AA$25:$AA$34=0)) -> 2 | AQ6: =AK6-AL6 -> 5 | AR6: =RANK(BA6,$BA$6:$BA$10,0) -> 4 | AS6: PD TEAM 1 | AY6: =SUMIF($AF$25:$AK$34,AS6,$AT$25:$AT$34)+SUMIF($AM$25:$AR$34,AS6,$AV$25:$AV$34) -> 7 | AZ6: =SUMIF($AF$25:$AK$34,AS6,$AV$25:$AV$34)+SUMIF($AM$25:$AR$34,AS6,$AT$25:$AT$34) -> 10 | BA6: =(BB6*3)+BC6+(AY6*0.001)-(AZ6*0.001)+(AY6*0.00001) -> 2.99707 | BB6: =SUMPRODUCT(($AF$25:$AK$34=AS6)*($AX$25:$AX$34=3))+SUMPRODUCT(($AM$25:$AR$34=AS6)*($AZ$25:$AZ$34=3)) -> 0 | BC6: =SUMPRODUCT(($AF$25:$AK$34=AS6)*($AX$25:$AX$34=1))+SUMPRODUCT(($AM$25:$AR$34=AS6)*($AZ$25:$AZ$34=1)) -> 3 | BD6: =SUMPRODUCT(($AF$25:$AK$34=AS6)*($AX$25:$AX$34=0))+SUMPRODUCT(($AM$25:$AR$34=AS6)*($AZ$25:$AZ$34=0)) -> 1 | BE6: =AY6-AZ6 -> -3 | BF6: =RANK(BO6,$BO$6:$BO$10,0) -> 5 | BG6: PE TEAM 1 | BM6: =SUMIF($G$38:$L$47,BG6,$U$38:$U$47)+SUMIF($N$38:$S$47,BG6,$W$38:$W$47) -> 12 | BN6: =SUMIF($G$38:$L$47,BG6,$W$38:$W$47)+SUMIF($N$38:$S$47,BG6,$U$38:$U$47) -> 15 | BO6: =(BP6*3)+BQ6+(BM6*0.001)-(BN6*0.001)+(BM6*0.00001) -> 2.99712 | BP6: =SUMPRODUCT(($G$38:$L$47=BG6)*($Y$38:$Y$47=3))+SUMPRODUCT(($N$38:$S$47=BG6)*($AA$38:$AA$47=3)) -> 1 | BQ6: =SUMPRODUCT(($G$38:$L$47=BG6)*($Y$38:$Y$47=1))+SUMPRODUCT(($N$38:$S$47=BG6)*($AA$38:$AA$47=1)) -> 0 | BR6: =SUMPRODUCT(($G$38:$L$47=BG6)*($Y$38:$Y$47=0))+SUMPRODUCT(($N$38:$S$47=BG6)*($AA$38:$AA$47=0)) -> 3 | BS6: =BM6-BN6 -> -3
A7: =RANK(J7,$J$6:$J$10,0) -> 5 | B7: PA TEAM 2 | H7: =SUMIF($G$13:$L$22,B7,$U$13:$U$22)+SUMIF($N$13:$S$22,B7,$W$13:$W$22) -> 10 | I7: =SUMIF($G$13:$L$22,B7,$W$13:$W$22)+SUMIF($N$13:$S$22,B7,$U$13:$U$22) -> 10 | J7: =(K7*3)+L7+(H7*0.001)-(I7*0.001)+(H7*0.00001) -> 3.0001 | K7: =SUMPRODUCT(($G$13:$L$22=B7)*($Y$13:$Y$22=3))+SUMPRODUCT(($N$13:$S$22=B7)*($AA$13:$AA$22=3)) -> 1 | L7: =SUMPRODUCT(($G$13:$L$22=B7)*($Y$13:$Y$22=1))+SUMPRODUCT(($N$13:$S$22=B7)*($AA$13:$AA$22=1)) -> 0 | M7: =SUMPRODUCT(($G$13:$L$22=B7)*($Y$13:$Y$22=0))+SUMPRODUCT(($N$13:$S$22=B7)*($AA$13:$AA$22=0)) -> 3 | N7: =H7-I7 -> 0 | O7: =RANK(Y7,$Y$6:$Y$10,0) -> 1 | P7: PB TEAM 2 | W7: =SUMIF($AF$13:$AK$22,P7,$AT$13:$AT$22)+SUMIF($AM$13:$AR$22,P7,$AV$13:$AV$22) -> 16 | X7: =SUMIF($AF$13:$AK$22,P7,$AV$13:$AV$22)+SUMIF($AM$13:$AR$22,P7,$AT$13:$AT$22) -> 7 | Y7: =(Z7*3)+AA7+(W7*0.001)-(X7*0.001)+(W7*0.00001) -> 7.00916 | Z7: =SUMPRODUCT(($AF$13:$AK$22=P7)*($AX$13:$AX$22=3))+SUMPRODUCT(($AM$13:$AR$22=P7)*($AZ$13:$AZ$22=3)) -> 2 | AA7: =SUMPRODUCT(($AF$13:$AK$22=P7)*($AX$13:$AX$22=1))+SUMPRODUCT(($AM$13:$AR$22=P7)*($AZ$13:$AZ$22=1)) -> 1 | AB7: =SUMPRODUCT(($AF$13:$AK$22=P7)*($AX$13:$AX$22=0))+SUMPRODUCT(($AM$13:$AR$22=P7)*($AZ$13:$AZ$22=0)) -> 1 | AC7: =W7-X7 -> 9 | AD7: =RANK(AM7,$AM$6:$AM$10,0) -> 4 | AE7: PC TEAM 2 | AK7: =SUMIF($G$25:$L$34,AE7,$U$25:$U$34)+SUMIF($N$25:$S$34,AE7,$W$25:$W$34) -> 9 | AL7: =SUMIF($G$25:$L$34,AE7,$W$25:$W$34)+SUMIF($N$25:$S$34,AE7,$U$25:$U$34) -> 16 | AM7: =(AN7*3)+AO7+(AK7*0.001)-(AL7*0.001)+(AK7*0.00001) -> 5.99309 | AN7: =SUMPRODUCT(($G$25:$L$34=AE7)*($Y$25:$Y$34=3))+SUMPRODUCT(($N$25:$S$34=AE7)*($AA$25:$AA$34=3)) -> 2 | AO7: =SUMPRODUCT(($G$25:$L$34=AE7)*($Y$25:$Y$34=1))+SUMPRODUCT(($N$25:$S$34=AE7)*($AA$25:$AA$34=1)) -> 0 | AP7: =SUMPRODUCT(($G$25:$L$34=AE7)*($Y$25:$Y$34=0))+SUMPRODUCT(($N$25:$S$34=AE7)*($AA$25:$AA$34=0)) -> 2 | AQ7: =AK7-AL7 -> -7 | AR7: =RANK(BA7,$BA$6:$BA$10,0) -> 5 | AS7: PD TEAM 2 | AY7: =SUMIF($AF$25:$AK$34,AS7,$AT$25:$AT$34)+SUMIF($AM$25:$AR$34,AS7,$AV$25:$AV$34) -> 8 | AZ7: =SUMIF($AF$25:$AK$34,AS7,$AV$25:$AV$34)+SUMIF($AM$25:$AR$34,AS7,$AT$25:$AT$34) -> 13 | BA7: =(BB7*3)+BC7+(AY7*0.001)-(AZ7*0.001)+(AY7*0.00001) -> 0.99508 | BB7: =SUMPRODUCT(($AF$25:$AK$34=AS7)*($AX$25:$AX$34=3))+SUMPRODUCT(($AM$25:$AR$34=AS7)*($AZ$25:$AZ$34=3)) -> 0 | BC7: =SUMPRODUCT(($AF$25:$AK$34=AS7)*($AX$25:$AX$34=1))+SUMPRODUCT(($AM$25:$AR$34=AS7)*($AZ$25:$AZ$34=1)) -> 1 | BD7: =SUMPRODUCT(($AF$25:$AK$34=AS7)*($AX$25:$AX$34=0))+SUMPRODUCT(($AM$25:$AR$34=AS7)*($AZ$25:$AZ$34=0)) -> 3 | BE7: =AY7-AZ7 -> -5 | BF7: =RANK(BO7,$BO$6:$BO$10,0) -> 4 | BG7: PE TEAM 2 | BM7: =SUMIF($G$38:$L$47,BG7,$U$38:$U$47)+SUMIF($N$38:$S$47,BG7,$W$38:$W$47) -> 7 | BN7: =SUMIF($G$38:$L$47,BG7,$W$38:$W$47)+SUMIF($N$38:$S$47,BG7,$U$38:$U$47) -> 8 | BO7: =(BP7*3)+BQ7+(BM7*0.001)-(BN7*0.001)+(BM7*0.00001) -> 4.99907 | BP7: =SUMPRODUCT(($G$38:$L$47=BG7)*($Y$38:$Y$47=3))+SUMPRODUCT(($N$38:$S$47=BG7)*($AA$38:$AA$47=3)) -> 1 | BQ7: =SUMPRODUCT(($G$38:$L$47=BG7)*($Y$38:$Y$47=1))+SUMPRODUCT(($N$38:$S$47=BG7)*($AA$38:$AA$47=1)) -> 2 | BR7: =SUMPRODUCT(($G$38:$L$47=BG7)*($Y$38:$Y$47=0))+SUMPRODUCT(($N$38:$S$47=BG7)*($AA$38:$AA$47=0)) -> 1 | BS7: =BM7-BN7 -> -1
A8: =RANK(J8,$J$6:$J$10,0) -> 2 | B8: PA TEAM 3 | H8: =SUMIF($G$13:$L$22,B8,$U$13:$U$22)+SUMIF($N$13:$S$22,B8,$W$13:$W$22) -> 11 | I8: =SUMIF($G$13:$L$22,B8,$W$13:$W$22)+SUMIF($N$13:$S$22,B8,$U$13:$U$22) -> 11 | J8: 7.00011 | K8: =SUMPRODUCT(($G$13:$L$22=B8)*($Y$13:$Y$22=3))+SUMPRODUCT(($N$13:$S$22=B8)*($AA$13:$AA$22=3)) -> 2 | L8: =SUMPRODUCT(($G$13:$L$22=B8)*($Y$13:$Y$22=1))+SUMPRODUCT(($N$13:$S$22=B8)*($AA$13:$AA$22=1)) -> 1 | M8: =SUMPRODUCT(($G$13:$L$22=B8)*($Y$13:$Y$22=0))+SUMPRODUCT(($N$13:$S$22=B8)*($AA$13:$AA$22=0)) -> 1 | N8: =H8-I8 -> 0 | O8: =RANK(Y8,$Y$6:$Y$10,0) -> 4 | P8: PB TEAM 3 | W8: =SUMIF($AF$13:$AK$22,P8,$AT$13:$AT$22)+SUMIF($AM$13:$AR$22,P8,$AV$13:$AV$22) -> 14 | X8: =SUMIF($AF$13:$AK$22,P8,$AV$13:$AV$22)+SUMIF($AM$13:$AR$22,P8,$AT$13:$AT$22) -> 13 | Y8: 5.00114 | Z8: =SUMPRODUCT(($AF$13:$AK$22=P8)*($AX$13:$AX$22=3))+SUMPRODUCT(($AM$13:$AR$22=P8)*($AZ$13:$AZ$22=3)) -> 1 | AA8: =SUMPRODUCT(($AF$13:$AK$22=P8)*($AX$13:$AX$22=1))+SUMPRODUCT(($AM$13:$AR$22=P8)*($AZ$13:$AZ$22=1)) -> 2 | AB8: =SUMPRODUCT(($AF$13:$AK$22=P8)*($AX$13:$AX$22=0))+SUMPRODUCT(($AM$13:$AR$22=P8)*($AZ$13:$AZ$22=0)) -> 1 | AC8: =W8-X8 -> 1 | AD8: =RANK(AM8,$AM$6:$AM$10,0) -> 3 | AE8: PC TEAM 3 | AK8: =SUMIF($G$25:$L$34,AE8,$U$25:$U$34)+SUMIF($N$25:$S$34,AE8,$W$25:$W$34) -> 17 | AL8: =SUMIF($G$25:$L$34,AE8,$W$25:$W$34)+SUMIF($N$25:$S$34,AE8,$U$25:$U$34) -> 17 | AM8: 6.00017 | AN8: =SUMPRODUCT(($G$25:$L$34=AE8)*($Y$25:$Y$34=3))+SUMPRODUCT(($N$25:$S$34=AE8)*($AA$25:$AA$34=3)) -> 2 | AO8: =SUMPRODUCT(($G$25:$L$34=AE8)*($Y$25:$Y$34=1))+SUMPRODUCT(($N$25:$S$34=AE8)*($AA$25:$AA$34=1)) -> 0 | AP8: =SUMPRODUCT(($G$25:$L$34=AE8)*($Y$25:$Y$34=0))+SUMPRODUCT(($N$25:$S$34=AE8)*($AA$25:$AA$34=0)) -> 2 | AQ8: =AK8-AL8 -> 0 | AR8: =RANK(BA8,$BA$6:$BA$10,0) -> 1 | AS8: PD TEAM 3 | AY8: =SUMIF($AF$25:$AK$34,AS8,$AT$25:$AT$34)+SUMIF($AM$25:$AR$34,AS8,$AV$25:$AV$34) -> 11 | AZ8: =SUMIF($AF$25:$AK$34,AS8,$AV$25:$AV$34)+SUMIF($AM$25:$AR$34,AS8,$AT$25:$AT$34) -> 6 | BA8: 10.00511 | BB8: =SUMPRODUCT(($AF$25:$AK$34=AS8)*($AX$25:$AX$34=3))+SUMPRODUCT(($AM$25:$AR$34=AS8)*($AZ$25:$AZ$34=3)) -> 3 | BC8: =SUMPRODUCT(($AF$25:$AK$34=AS8)*($AX$25:$AX$34=1))+SUMPRODUCT(($AM$25:$AR$34=AS8)*($AZ$25:$AZ$34=1)) -> 1 | BD8: =SUMPRODUCT(($AF$25:$AK$34=AS8)*($AX$25:$AX$34=0))+SUMPRODUCT(($AM$25:$AR$34=AS8)*($AZ$25:$AZ$34=0)) -> 0 | BE8: =AY8-AZ8 -> 5 | BF8: 2 | BG8: PE TEAM 3 | BM8: =SUMIF($G$38:$L$47,BG8,$U$38:$U$47)+SUMIF($N$38:$S$47,BG8,$W$38:$W$47) -> 9 | BN8: =SUMIF($G$38:$L$47,BG8,$W$38:$W$47)+SUMIF($N$38:$S$47,BG8,$U$38:$U$47) -> 9 | BO8: 6.00009 | BP8: =SUMPRODUCT(($G$38:$L$47=BG8)*($Y$38:$Y$47=3))+SUMPRODUCT(($N$38:$S$47=BG8)*($AA$38:$AA$47=3)) -> 2 | BQ8: =SUMPRODUCT(($G$38:$L$47=BG8)*($Y$38:$Y$47=1))+SUMPRODUCT(($N$38:$S$47=BG8)*($AA$38:$AA$47=1)) -> 0 | BR8: =SUMPRODUCT(($G$38:$L$47=BG8)*($Y$38:$Y$47=0))+SUMPRODUCT(($N$38:$S$47=BG8)*($AA$38:$AA$47=0)) -> 2 | BS8: =BM8-BN8 -> 0
A9: =RANK(J9,$J$6:$J$10,0) -> 1 | B9: PA TEAM 4 | H9: =SUMIF($G$13:$L$22,B9,$U$13:$U$22)+SUMIF($N$13:$S$22,B9,$W$13:$W$22) -> 10 | I9: =SUMIF($G$13:$L$22,B9,$W$13:$W$22)+SUMIF($N$13:$S$22,B9,$U$13:$U$22) -> 3 | J9: 8.0071 | K9: =SUMPRODUCT(($G$13:$L$22=B9)*($Y$13:$Y$22=3))+SUMPRODUCT(($N$13:$S$22=B9)*($AA$13:$AA$22=3)) -> 2 | L9: =SUMPRODUCT(($G$13:$L$22=B9)*($Y$13:$Y$22=1))+SUMPRODUCT(($N$13:$S$22=B9)*($AA$13:$AA$22=1)) -> 2 | M9: =SUMPRODUCT(($G$13:$L$22=B9)*($Y$13:$Y$22=0))+SUMPRODUCT(($N$13:$S$22=B9)*($AA$13:$AA$22=0)) -> 0 | N9: =H9-I9 -> 7 | O9: =RANK(Y9,$Y$6:$Y$10,0) -> 2 | P9: PB TEAM 4 | W9: =SUMIF($AF$13:$AK$22,P9,$AT$13:$AT$22)+SUMIF($AM$13:$AR$22,P9,$AV$13:$AV$22) -> 12 | X9: =SUMIF($AF$13:$AK$22,P9,$AV$13:$AV$22)+SUMIF($AM$13:$AR$22,P9,$AT$13:$AT$22) -> 12 | Y9: 6.00012 | Z9: =SUMPRODUCT(($AF$13:$AK$22=P9)*($AX$13:$AX$22=3))+SUMPRODUCT(($AM$13:$AR$22=P9)*($AZ$13:$AZ$22=3)) -> 2 | AA9: =SUMPRODUCT(($AF$13:$AK$22=P9)*($AX$13:$AX$22=1))+SUMPRODUCT(($AM$13:$AR$22=P9)*($AZ$13:$AZ$22=1)) -> 0 | AB9: =SUMPRODUCT(($AF$13:$AK$22=P9)*($AX$13:$AX$22=0))+SUMPRODUCT(($AM$13:$AR$22=P9)*($AZ$13:$AZ$22=0)) -> 2 | AC9: =W9-X9 -> 0 | AD9: =RANK(AM9,$AM$6:$AM$10,0) -> 5 | AE9: PC TEAM 4 | AK9: =SUMIF($G$25:$L$34,AE9,$U$25:$U$34)+SUMIF($N$25:$S$34,AE9,$W$25:$W$34) -> 7 | AL9: =SUMIF($G$25:$L$34,AE9,$W$25:$W$34)+SUMIF($N$25:$S$34,AE9,$U$25:$U$34) -> 19 | AM9: -0.01193 | AN9: =SUMPRODUCT(($G$25:$L$34=AE9)*($Y$25:$Y$34=3))+SUMPRODUCT(($N$25:$S$34=AE9)*($AA$25:$AA$34=3)) -> 0 | AO9: =SUMPRODUCT(($G$25:$L$34=AE9)*($Y$25:$Y$34=1))+SUMPRODUCT(($N$25:$S$34=AE9)*($AA$25:$AA$34=1)) -> 0 | AP9: =SUMPRODUCT(($G$25:$L$34=AE9)*($Y$25:$Y$34=0))+SUMPRODUCT(($N$25:$S$34=AE9)*($AA$25:$AA$34=0)) -> 4 | AQ9: =AK9-AL9 -> -12 | AR9: =RANK(BA9,$BA$6:$BA$10,0) -> 3 | AS9: PD TEAM 4 | AY9: =SUMIF($AF$25:$AK$34,AS9,$AT$25:$AT$34)+SUMIF($AM$25:$AR$34,AS9,$AV$25:$AV$34) -> 10 | AZ9: =SUMIF($AF$25:$AK$34,AS9,$AV$25:$AV$34)+SUMIF($AM$25:$AR$34,AS9,$AT$25:$AT$34) -> 9 | BA9: 5.0011 | BB9: =SUMPRODUCT(($AF$25:$AK$34=AS9)*($AX$25:$AX$34=3))+SUMPRODUCT(($AM$25:$AR$34=AS9)*($AZ$25:$AZ$34=3)) -> 1 | BC9: =SUMPRODUCT(($AF$25:$AK$34=AS9)*($AX$25:$AX$34=1))+SUMPRODUCT(($AM$25:$AR$34=AS9)*($AZ$25:$AZ$34=1)) -> 2 | BD9: =SUMPRODUCT(($AF$25:$AK$34=AS9)*($AX$25:$AX$34=0))+SUMPRODUCT(($AM$25:$AR$34=AS9)*($AZ$25:$AZ$34=0)) -> 1 | BE9: =AY9-AZ9 -> 1 | BF9: 1 | BG9: PE TEAM 4 | BM9: =SUMIF($G$38:$L$47,BG9,$U$38:$U$47)+SUMIF($N$38:$S$47,BG9,$W$38:$W$47) -> 11 | BN9: =SUMIF($G$38:$L$47,BG9,$W$38:$W$47)+SUMIF($N$38:$S$47,BG9,$U$38:$U$47) -> 7 | BO9: 8.00411 | BP9: =SUMPRODUCT(($G$38:$L$47=BG9)*($Y$38:$Y$47=3))+SUMPRODUCT(($N$38:$S$47=BG9)*($AA$38:$AA$47=3)) -> 2 | BQ9: =SUMPRODUCT(($G$38:$L$47=BG9)*($Y$38:$Y$47=1))+SUMPRODUCT(($N$38:$S$47=BG9)*($AA$38:$AA$47=1)) -> 2 | BR9: =SUMPRODUCT(($G$38:$L$47=BG9)*($Y$38:$Y$47=0))+SUMPRODUCT(($N$38:$S$47=BG9)*($AA$38:$AA$47=0)) -> 0 | BS9: =BM9-BN9 -> 4
A10: =RANK(J10,$J$6:$J$10,0) -> 4 | B10: PA TEAM 5 | H10: =SUMIF($G$13:$L$22,B10,$U$13:$U$22)+SUMIF($N$13:$S$22,B10,$W$13:$W$22) -> 11 | I10: =SUMIF($G$13:$L$22,B10,$W$13:$W$22)+SUMIF($N$13:$S$22,B10,$U$13:$U$22) -> 17 | J10: 3.99411 | K10: =SUMPRODUCT(($G$13:$L$22=B10)*($Y$13:$Y$22=3))+SUMPRODUCT(($N$13:$S$22=B10)*($AA$13:$AA$22=3)) -> 1 | L10: =SUMPRODUCT(($G$13:$L$22=B10)*($Y$13:$Y$22=1))+SUMPRODUCT(($N$13:$S$22=B10)*($AA$13:$AA$22=1)) -> 1 | M10: =SUMPRODUCT(($G$13:$L$22=B10)*($Y$13:$Y$22=0))+SUMPRODUCT(($N$13:$S$22=B10)*($AA$13:$AA$22=0)) -> 2 | N10: =H10-I10 -> -6 | O10: =RANK(Y10,$Y$6:$Y$10,0) -> 5 | P10: PB TEAM 5 | W10: =SUMIF($AF$13:$AK$22,P10,$AT$13:$AT$22)+SUMIF($AM$13:$AR$22,P10,$AV$13:$AV$22) -> 9 | X10: =SUMIF($AF$13:$AK$22,P10,$AV$13:$AV$22)+SUMIF($AM$13:$AR$22,P10,$AT$13:$AT$22) -> 14 | Y10: 3.99509 | Z10: =SUMPRODUCT(($AF$13:$AK$22=P10)*($AX$13:$AX$22=3))+SUMPRODUCT(($AM$13:$AR$22=P10)*($AZ$13:$AZ$22=3)) -> 1 | AA10: =SUMPRODUCT(($AF$13:$AK$22=P10)*($AX$13:$AX$22=1))+SUMPRODUCT(($AM$13:$AR$22=P10)*($AZ$13:$AZ$22=1)) -> 1 | AB10: =SUMPRODUCT(($AF$13:$AK$22=P10)*($AX$13:$AX$22=0))+SUMPRODUCT(($AM$13:$AR$22=P10)*($AZ$13:$AZ$22=0)) -> 2 | AC10: =W10-X10 -> -5 | AD10: =RANK(AM10,$AM$6:$AM$10,0) -> 1 | AE10: PC TEAM 5 | AK10: =SUMIF($G$25:$L$34,AE10,$U$25:$U$34)+SUMIF($N$25:$S$34,AE10,$W$25:$W$34) -> 20 | AL10: =SUMIF($G$25:$L$34,AE10,$W$25:$W$34)+SUMIF($N$25:$S$34,AE10,$U$25:$U$34) -> 6 | AM10: 12.0142 | AN10: =SUMPRODUCT(($G$25:$L$34=AE10)*($Y$25:$Y$34=3))+SUMPRODUCT(($N$25:$S$34=AE10)*($AA$25:$AA$34=3)) -> 4 | AO10: =SUMPRODUCT(($G$25:$L$34=AE10)*($Y$25:$Y$34=1))+SUMPRODUCT(($N$25:$S$34=AE10)*($AA$25:$AA$34=1)) -> 0 | AP10: =SUMPRODUCT(($G$25:$L$34=AE10)*($Y$25:$Y$34=0))+SUMPRODUCT(($N$25:$S$34=AE10)*($AA$25:$AA$34=0)) -> 0 | AQ10: =AK10-AL10 -> 14 | AR10: =RANK(BA10,$BA$6:$BA$10,0) -> 2 | AS10: PD TEAM 5 | AY10: =SUMIF($AF$25:$AK$34,AS10,$AT$25:$AT$34)+SUMIF($AM$25:$AR$34,AS10,$AV$25:$AV$34) -> 11 | AZ10: =SUMIF($AF$25:$AK$34,AS10,$AV$25:$AV$34)+SUMIF($AM$25:$AR$34,AS10,$AT$25:$AT$34) -> 9 | BA10: 6.00211 | BB10: =SUMPRODUCT(($AF$25:$AK$34=AS10)*($AX$25:$AX$34=3))+SUMPRODUCT(($AM$25:$AR$34=AS10)*($AZ$25:$AZ$34=3)) -> 1 | BC10: =SUMPRODUCT(($AF$25:$AK$34=AS10)*($AX$25:$AX$34=1))+SUMPRODUCT(($AM$25:$AR$34=AS10)*($AZ$25:$AZ$34=1)) -> 3 | BD10: =SUMPRODUCT(($AF$25:$AK$34=AS10)*($AX$25:$AX$34=0))+SUMPRODUCT(($AM$25:$AR$34=AS10)*($AZ$25:$AZ$34=0)) -> 0 | BE10: =AY10-AZ10 -> 2 | BF10: 3 | BG10: PE TEAM 5 | BM10: =SUMIF($G$38:$L$47,BG10,$U$38:$U$47)+SUMIF($N$38:$S$47,BG10,$W$38:$W$47) -> 13 | BN10: =SUMIF($G$38:$L$47,BG10,$W$38:$W$47)+SUMIF($N$38:$S$47,BG10,$U$38:$U$47) -> 13 | BO10: 5.00013 | BP10: =SUMPRODUCT(($G$38:$L$47=BG10)*($Y$38:$Y$47=3))+SUMPRODUCT(($N$38:$S$47=BG10)*($AA$38:$AA$47=3)) -> 1 | BQ10: =SUMPRODUCT(($G$38:$L$47=BG10)*($Y$38:$Y$47=1))+SUMPRODUCT(($N$38:$S$47=BG10)*($AA$38:$AA$47=1)) -> 2 | BR10: =SUMPRODUCT(($G$38:$L$47=BG10)*($Y$38:$Y$47=0))+SUMPRODUCT(($N$38:$S$47=BG10)*($AA$38:$AA$47=0)) -> 1 | BS10: =BM10-BN10 -> 0
D12: Tijd | G12: VELD 1 | U12: Uitslag | Y12: Punten | AC12: Tijd | AF12: VELD 2 | AT12: Uitslag | AX12: Punten
D13: 09:00:00 | G13: =B6 -> PA TEAM 1 | M13: -- | N13: =B7 -> PA TEAM 2 | U13: 3 | V13: -- | W13: 2 | Y13: =IF(U13="","",IF(U13>W13,3,IF(U13=W13,1,0))) -> 3 | AA13: =IF(W13="","",IF(W13>U13,3,IF(W13=U13,1,0))) -> 0 | AC13: 09:00:00 | AF13: =P6 -> PB TEAM 1 | AL13: -- | AM13: =P7 -> PB TEAM 2 | AT13: 1 | AU13: -- | AV13: 8 | AX13: =IF(AT13="","",IF(AT13>AV13,3,IF(AT13=AV13,1,0))) -> 0 | AZ13: =IF(AV13="","",IF(AV13>AT13,3,IF(AV13=AT13,1,0))) -> 3
D14: 09:20:00 | G14: =B8 -> PA TEAM 3 | M14: -- | N14: =B9 -> PA TEAM 4 | U14: 0 | V14: -- | W14: 0 | Y14: =IF(U14="","",IF(U14>W14,3,IF(U14=W14,1,0))) -> 1 | AA14: =IF(W14="","",IF(W14>U14,3,IF(W14=U14,1,0))) -> 1 | AC14: 09:20:00 | AF14: =P8 -> PB TEAM 3 | AL14: -- | AM14: =P9 -> PB TEAM 4 | AT14: 2 | AU14: -- | AV14: 6 | AX14: =IF(AT14="","",IF(AT14>AV14,3,IF(AT14=AV14,1,0))) -> 0 | AZ14: =IF(AV14="","",IF(AV14>AT14,3,IF(AV14=AT14,1,0))) -> 3
D15: 09:40:00 | G15: =B10 -> PA TEAM 5 | M15: -- | N15: =B6 -> PA TEAM 1 | U15: 5 | V15: -- | W15: 5 | Y15: =IF(U15="","",IF(U15>W15,3,IF(U15=W15,1,0))) -> 1 | AA15: 1 | AC15: 09:40:00 | AF15: =P10 -> PB TEAM 5 | AL15: -- | AM15: =P6 -> PB TEAM 1 | AT15: 3 | AU15: -- | AV15: 8 | AX15: =IF(AT15="","",IF(AT15>AV15,3,IF(AT15=AV15,1,0))) -> 0 | AZ15: 3
D16: 10:00:00 | G16: =B7 -> PA TEAM 2 | M16: -- | N16: =B8 -> PA TEAM 3 | U16: 6 | V16: -- | W16: 3 | Y16: 3 | AA16: 0 | AC16: 10:00:00 | AF16: =P7 -> PB TEAM 2 | AL16: -- | AM16: =P8 -> PB TEAM 3 | AT16: 4 | AU16: -- | AV16: 4 | AX16: 1 | AZ16: 1
D17: 10:20:00 | G17: =B10 -> PA TEAM 5 | M17: -- | N17: =B9 -> PA TEAM 4 | U17: 2 | V17: -- | W17: 8 | Y17: 0 | AA17: 3 | AC17: 10:20:00 | AF17: =P10 -> PB TEAM 5 | AL17: -- | AM17: =P9 -> PB TEAM 4 | AT17: 2 | AU17: -- | AV17: 3 | AX17: 0 | AZ17: 3
D18: 10:40:00 | G18: =B6 -> PA TEAM 1 | M18: -- | N18: =B8 -> PA TEAM 3 | U18: 3 | V18: -- | W18: 5 | Y18: 0 | AA18: 3 | AC18: 10:40:00 | AF18: =P6 -> PB TEAM 1 | AL18: -- | AM18: =P8 -> PB TEAM 3 | AT18: 1 | AU18: -- | AV18: 6 | AX18: 0 | AZ18: 3
D19: 11:00:00 | G19: =B7 -> PA TEAM 2 | M19: -- | N19: =B10 -> PA TEAM 5 | U19: 1 | V19: -- | W19: 2 | Y19: 0 | AA19: 3 | AC19: 11:00:00 | AF19: =P7 -> PB TEAM 2 | AL19: -- | AM19: =P10 -> PB TEAM 5 | AT19: 1 | AU19: -- | AV19: 2 | AX19: 0 | AZ19: 3
D20: 11:20:00 | G20: =B9 -> PA TEAM 4 | M20: -- | N20: =B6 -> PA TEAM 1 | U20: 0 | V20: -- | W20: 0 | Y20: 1 | AA20: 1 | AC20: 11:20:00 | AF20: =P9 -> PB TEAM 4 | AL20: -- | AM20: =P6 -> PB TEAM 1 | AT20: 3 | AU20: -- | AV20: 5 | AX20: 0 | AZ20: 3
D21: 11:40:00 | G21: =B8 -> PA TEAM 3 | M21: -- | N21: =B10 -> PA TEAM 5 | U21: 3 | V21: -- | W21: 2 | Y21: 3 | AA21: 0 | AC21: 11:40:00 | AF21: =P8 -> PB TEAM 3 | AL21: -- | AM21: =P10 -> PB TEAM 5 | AT21: 2 | AU21: -- | AV21: 2 | AX21: 1 | AZ21: 1
D22: 12:00:00 | G22: =B9 -> PA TEAM 4 | M22: -- | N22: =B7 -> PA TEAM 2 | U22: 2 | V22: -- | W22: 1 | Y22: 3 | AA22: 0 | AC22: 12:00:00 | AF22: =P9 -> PB TEAM 4 | AL22: -- | AM22: =P7 -> PB TEAM 2 | AT22: 0 | AU22: -- | AV22: 3 | AX22: 0 | AZ22: 3
D24: Tijd | G24: VELD 3 | U24: Uitslag | Y24: Punten | AC24: Tijd | AF24: VELD 4 | AT24: Uitslag | AX24: Punten
D25: 09:00:00 | G25: =AE6 -> PC TEAM 1 | M25: -- | N25: =AE7 -> PC TEAM 2 | U25: 9 | V25: -- | W25: 2 | Y25: =IF(U25="","",IF(U25>W25,3,IF(U25=W25,1,0))) -> 3 | AA25: =IF(W25="","",IF(W25>U25,3,IF(W25=U25,1,0))) -> 0 | AC25: 09:00:00 | AF25: =AS6 -> PD TEAM 1 | AL25: -- | AM25: =AS7 -> PD TEAM 2 | AT25: 1 | AU25: -- | AV25: 1 | AX25: =IF(AT25="","",IF(AT25>AV25,3,IF(AT25=AV25,1,0))) -> 1 | AZ25: =IF(AV25="","",IF(AV25>AT25,3,IF(AV25=AT25,1,0))) -> 1
D26: 09:20:00 | G26: =AE8 -> PC TEAM 3 | M26: -- | N26: =AE9 -> PC TEAM 4 | U26: 8 | V26: -- | W26: 4 | Y26: =IF(U26="","",IF(U26>W26,3,IF(U26=W26,1,0))) -> 3 | AA26: =IF(W26="","",IF(W26>U26,3,IF(W26=U26,1,0))) -> 0 | AC26: 09:20:00 | AF26: =AS8 -> PD TEAM 3 | AL26: -- | AM26: =AS9 -> PD TEAM 4 | AT26: 1 | AU26: -- | AV26: 0 | AX26: =IF(AT26="","",IF(AT26>AV26,3,IF(AT26=AV26,1,0))) -> 3 | AZ26: =IF(AV26="","",IF(AV26>AT26,3,IF(AV26=AT26,1,0))) -> 0
D27: 09:40:00 | G27: =AE10 -> PC TEAM 5 | M27: -- | N27: =AE6 -> PC TEAM 1 | U27: 7 | V27: -- | W27: 5 | Y27: =IF(U27="","",IF(U27>W27,3,IF(U27=W27,1,0))) -> 3 | AA27: 0 | AC27: 09:40:00 | AF27: =AS10 -> PD TEAM 5 | AL27: -- | AM27: =AS6 -> PD TEAM 1 | AT27: 1 | AU27: -- | AV27: 1 | AX27: =IF(AT27="","",IF(AT27>AV27,3,IF(AT27=AV27,1,0))) -> 1 | AZ27: 1
D28: 10:00:00 | G28: =AE7 -> PC TEAM 2 | M28: -- | N28: =AE8 -> PC TEAM 3 | U28: 4 | V28: -- | W28: 1 | Y28: 3 | AA28: 0 | AC28: 10:00:00 | AF28: =AS7 -> PD TEAM 2 | AL28: -- | AM28: =AS8 -> PD TEAM 3 | AT28: 1 | AU28: -- | AV28: 2 | AX28: 0 | AZ28: 3
D29: 10:20:00 | G29: =AE10 -> PC TEAM 5 | M29: -- | N29: =AE9 -> PC TEAM 4 | U29: 5 | V29: -- | W29: 0 | Y29: 3 | AA29: 0 | AC29: 10:20:00 | AF29: =AS10 -> PD TEAM 5 | AL29: -- | AM29: =AS9 -> PD TEAM 4 | AT29: 2 | AU29: -- | AV29: 2 | AX29: 1 | AZ29: 1
D30: 10:40:00 | G30: =AE6 -> PC TEAM 1 | M30: -- | N30: =AE8 -> PC TEAM 3 | U30: 6 | V30: -- | W30: 8 | Y30: 0 | AA30: 3 | AC30: 10:40:00 | AF30: =AS6 -> PD TEAM 1 | AL30: -- | AM30: =AS8 -> PD TEAM 3 | AT30: 2 | AU30: -- | AV30: 5 | AX30: 0 | AZ30: 3
D31: 11:00:00 | G31: =AE7 -> PC TEAM 2 | M31: -- | N31: =AE10 -> PC TEAM 5 | U31: 1 | V31: -- | W31: 5 | Y31: 0 | AA31: 3 | AC31: 11:00:00 | AF31: =AS7 -> PD TEAM 2 | AL31: -- | AM31: =AS10 -> PD TEAM 5 | AT31: 3 | AU31: -- | AV31: 5 | AX31: 0 | AZ31: 3
D32: 11:20:00 | G32: =AE9 -> PC TEAM 4 | M32: -- | N32: =AE6 -> PC TEAM 1 | U32: 2 | V32: -- | W32: 4 | Y32: 0 | AA32: 3 | AC32: 11:20:00 | AF32: =AS9 -> PD TEAM 4 | AL32: -- | AM32: =AS6 -> PD TEAM 1 | AT32: 3 | AU32: -- | AV32: 3 | AX32: 1 | AZ32: 1
D33: 11:40:00 | G33: =AE8 -> PC TEAM 3 | M33: -- | N33: =AE10 -> PC TEAM 5 | U33: 0 | V33: -- | W33: 3 | Y33: 0 | AA33: 3 | AC33: 11:40:00 | AF33: =AS8 -> PD TEAM 3 | AL33: -- | AM33: =AS10 -> PD TEAM 5 | AT33: 3 | AU33: -- | AV33: 3 | AX33: 1 | AZ33: 1
D34: 12:00:00 | G34: =AE9 -> PC TEAM 4 | M34: -- | N34: =AE7 -> PC TEAM 2 | U34: 1 | V34: -- | W34: 2 | Y34: 0 | AA34: 3 | AC34: 12:00:00 | AF34: =AS9 -> PD TEAM 4 | AL34: -- | AM34: =AS7 -> PD TEAM 2 | AT34: 5 | AU34: -- | AV34: 3 | AX34: 3 | AZ34: 0
D37: Tijd | G37: VELD 5 | U37: Uitslag | Y37: Punten
D38: 09:00:00 | G38: =BG6 -> PE TEAM 1 | M38: -- | N38: =BG7 -> PE TEAM 2 | U38: 2 | V38: -- | W38: 3 | Y38: =IF(U38="","",IF(U38>W38,3,IF(U38=W38,1,0))) -> 0 | AA38: =IF(W38="","",IF(W38>U38,3,IF(W38=U38,1,0))) -> 3
D39: 09:20:00 | G39: =BG8 -> PE TEAM 3 | M39: -- | N39: =BG9 -> PE TEAM 4 | U39: 3 | V39: -- | W39: 5 | Y39: =IF(U39="","",IF(U39>W39,3,IF(U39=W39,1,0))) -> 0 | AA39: =IF(W39="","",IF(W39>U39,3,IF(W39=U39,1,0))) -> 3
D40: 09:40:00 | G40: =BG10 -> PE TEAM 5 | M40: -- | N40: =BG6 -> PE TEAM 1 | U40: 6 | V40: -- | W40: 5 | Y40: =IF(U40="","",IF(U40>W40,3,IF(U40=W40,1,0))) -> 3 | AA40: 0
D41: 10:00:00 | G41: =BG7 -> PE TEAM 2 | M41: -- | N41: =BG8 -> PE TEAM 3 | U41: 0 | V41: -- | W41: 2 | Y41: 0 | AA41: 3
D42: 10:20:00 | G42: =BG10 -> PE TEAM 5 | M42: -- | N42: =BG9 -> PE TEAM 4 | U42: 1 | V42: -- | W42: 1 | Y42: 1 | AA42: 1
D43: 10:40:00 | G43: =BG6 -> PE TEAM 1 | M43: -- | N43: =BG8 -> PE TEAM 3 | U43: 2 | V43: -- | W43: 1 | Y43: 3 | AA43: 0
D44: 11:00:00 | G44: =BG7 -> PE TEAM 2 | M44: -- | N44: =BG10 -> PE TEAM 5 | U44: 4 | V44: -- | W44: 4 | Y44: 1 | AA44: 1
D45: 11:20:00 | G45: =BG9 -> PE TEAM 4 | M45: -- | N45: =BG6 -> PE TEAM 1 | U45: 5 | V45: -- | W45: 3 | Y45: 3 | AA45: 0
D46: 11:40:00 | G46: =BG8 -> PE TEAM 3 | M46: -- | N46: =BG10 -> PE TEAM 5 | U46: 3 | V46: -- | W46: 2 | Y46: 3 | AA46: 0
D47: 12:00:00 | G47: =BG9 -> PE TEAM 4 | M47: -- | N47: =BG7 -> PE TEAM 2 | U47: 0 | V47: -- | W47: 0 | Y47: 1 | AA47: 1
D49: (zie verder op het volgende blad)

Sheet Finales
A1: Toernooi 5 poules voorronde + finale poules 'beste nrs …' - Finales | AY1: =COUNTA(U13:W22) -> 10 | AZ1: =COUNTA(AT13:AV22) -> 10 | BA1: =COUNTA(U25:W34) -> 10 | BB1: =COUNTA(AT25:AV34) -> 10 | BC1: =COUNTA(U38:W47) -> 10
A3: Stand | K3: Gewonnen | L3: Gelijk | M3: Verloren | N3: Saldo | O3: Stand | Z3: Gewonnen | AA3: Gelijk | AB3: Verloren | AC3: Saldo | AD3: Stand | AN3: Gewonnen | AO3: Gelijk | AP3: Verloren | AQ3: Saldo | AR3: Stand | BB3: Gewonnen | BC3: Gelijk | BD3: Verloren | BE3: Saldo | BF3: Stand | BP3: Gewonnen | BQ3: Gelijk | BR3: Verloren | BS3: Saldo
B5: Poule A | H5: V | I5: T | J5: P | P5: Poule B | W5: V | X5: T | Y5: P | AE5: Poule C | AK5: V | AL5: T | AM5: P | AS5: Poule D | AY5: V | AZ5: T | BA5: P | BG5: Poule E | BM5: V | BN5: T | BO5: P
A6: =RANK(J6,$J$6:$J$10,0) -> 1 | B6: =VLOOKUP(1,Voorrondes!$A$6:$G$10,2,FALSE) -> PA TEAM 4 | H6: =SUMIF($G$13:$L$22,B6,$U$13:$U$22)+SUMIF($N$13:$S$22,B6,$W$13:$W$22) -> 0 | I6: =SUMIF($G$13:$L$22,B6,$W$13:$W$22)+SUMIF($N$13:$S$22,B6,$U$13:$U$22) -> 0 | J6: =(K6*3)+L6+(H6*0.001)-(I6*0.001)+(H6*0.00001) -> 0 | K6: =SUMPRODUCT(($G$13:$L$22=B6)*($Y$13:$Y$22=3))+SUMPRODUCT(($N$13:$S$22=B6)*($AA$13:$AA$22=3)) -> 0 | L6: =SUMPRODUCT(($G$13:$L$22=B6)*($Y$13:$Y$22=1))+SUMPRODUCT(($N$13:$S$22=B6)*($AA$13:$AA$22=1)) -> 0 | M6: =SUMPRODUCT(($G$13:$L$22=B6)*($Y$13:$Y$22=0))+SUMPRODUCT(($N$13:$S$22=B6)*($AA$13:$AA$22=0)) -> 0 | N6: =H6-I6 -> 0 | O6: =RANK(Y6,$Y$6:$Y$10,0) -> 1 | P6: =VLOOKUP(2,Voorrondes!$A$6:$G$10,2,FALSE) -> PA TEAM 3 | W6: =SUMIF($AF$13:$AK$22,P6,$AT$13:$AT$22)+SUMIF($AM$13:$AR$22,P6,$AV$13:$AV$22) -> 0 | X6: =SUMIF($AF$13:$AK$22,P6,$AV$13:$AV$22)+SUMIF($AM$13:$AR$22,P6,$AT$13:$AT$22) -> 0 | Y6: =(Z6*3)+AA6+(W6*0.001)-(X6*0.001)+(W6*0.00001) -> 0 | Z6: =SUMPRODUCT(($AF$13:$AK$22=P6)*($AX$13:$AX$22=3))+SUMPRODUCT(($AM$13:$AR$22=P6)*($AZ$13:$AZ$22=3)) -> 0 | AA6: =SUMPRODUCT(($AF$13:$AK$22=P6)*($AX$13:$AX$22=1))+SUMPRODUCT(($AM$13:$AR$22=P6)*($AZ$13:$AZ$22=1)) -> 0 | AB6: =SUMPRODUCT(($AF$13:$AK$22=P6)*($AX$13:$AX$22=0))+SUMPRODUCT(($AM$13:$AR$22=P6)*($AZ$13:$AZ$22=0)) -> 0 | AC6: =W6-X6 -> 0 | AD6: =RANK(AM6,$AM$6:$AM$10,0) -> 1 | AE6: =VLOOKUP(3,Voorrondes!$A$6:$G$10,2,FALSE) -> PA TEAM 1 | AK6: =SUMIF($G$25:$L$34,AE6,$U$25:$U$34)+SUMIF($N$25:$S$34,AE6,$W$25:$W$34) -> 0 | AL6: =SUMIF($G$25:$L$34,AE6,$W$25:$W$34)+SUMIF($N$25:$S$34,AE6,$U$25:$U$34) -> 0 | AM6: =(AN6*3)+AO6+(AK6*0.001)-(AL6*0.001)+(AK6*0.00001) -> 0 | AN6: =SUMPRODUCT(($G$25:$L$34=AE6)*($Y$25:$Y$34=3))+SUMPRODUCT(($N$25:$S$34=AE6)*($AA$25:$AA$34=3)) -> 0 | AO6: =SUMPRODUCT(($G$25:$L$34=AE6)*($Y$25:$Y$34=1))+SUMPRODUCT(($N$25:$S$34=AE6)*($AA$25:$AA$34=1)) -> 0 | AP6: =SUMPRODUCT(($G$25:$L$34=AE6)*($Y$25:$Y$34=0))+SUMPRODUCT(($N$25:$S$34=AE6)*($AA$25:$AA$34=0)) -> 0 | AQ6: =AK6-AL6 -> 0 | AR6: =RANK(BA6,$BA$6:$BA$10,0) -> 1 | AS6: =VLOOKUP(4,Voorrondes!$A$6:$G$10,2,FALSE) -> PA TEAM 5 | AY6: =SUMIF($AF$25:$AK$34,AS6,$AT$25:$AT$34)+SUMIF($AM$25:$AR$34,AS6,$AV$25:$AV$34) -> 0 | AZ6: =SUMIF($AF$25:$AK$34,AS6,$AV$25:$AV$34)+SUMIF($AM$25:$AR$34,AS6,$AT$25:$AT$34) -> 0 | BA6: =(BB6*3)+BC6+(AY6*0.001)-(AZ6*0.001)+(AY6*0.00001) -> 0 | BB6: =SUMPRODUCT(($AF$25:$AK$34=AS6)*($AX$25:$AX$34=3))+SUMPRODUCT(($AM$25:$AR$34=AS6)*($AZ$25:$AZ$34=3)) -> 0 | BC6: =SUMPRODUCT(($AF$25:$AK$34=AS6)*($AX$25:$AX$34=1))+SUMPRODUCT(($AM$25:$AR$34=AS6)*($AZ$25:$AZ$34=1)) -> 0 | BD6: =SUMPRODUCT(($AF$25:$AK$34=AS6)*($AX$25:$AX$34=0))+SUMPRODUCT(($AM$25:$AR$34=AS6)*($AZ$25:$AZ$34=0)) -> 0 | BE6: =AY6-AZ6 -> 0 | BF6: =RANK(BO6,$BO$6:$BO$10,0) -> 1 | BG6: =VLOOKUP(5,Voorrondes!$A$6:$G$10,2,FALSE) -> PA TEAM 2 | BM6: =SUMIF($G$38:$L$47,BG6,$U$38:$U$47)+SUMIF($N$38:$S$47,BG6,$W$38:$W$47) -> 0 | BN6: =SUMIF($G$38:$L$47,BG6,$W$38:$W$47)+SUMIF($N$38:$S$47,BG6,$U$38:$U$47) -> 0 | BO6: =(BP6*3)+BQ6+(BM6*0.001)-(BN6*0.001)+(BM6*0.00001) -> 0 | BP6: =SUMPRODUCT(($G$38:$L$47=BG6)*($Y$38:$Y$47=3))+SUMPRODUCT(($N$38:$S$47=BG6)*($AA$38:$AA$47=3)) -> 0 | BQ6: =SUMPRODUCT(($G$38:$L$47=BG6)*($Y$38:$Y$47=1))+SUMPRODUCT(($N$38:$S$47=BG6)*($AA$38:$AA$47=1)) -> 0 | BR6: =SUMPRODUCT(($G$38:$L$47=BG6)*($Y$38:$Y$47=0))+SUMPRODUCT(($N$38:$S$47=BG6)*($AA$38:$AA$47=0)) -> 0 | BS6: =BM6-BN6 -> 0
A7: =RANK(J7,$J$6:$J$10,0) -> 1 | B7: =VLOOKUP(1,Voorrondes!$O$6:$V$10,2,FALSE) -> PB TEAM 2 | H7: =SUMIF($G$13:$L$22,B7,$U$13:$U$22)+SUMIF($N$13:$S$22,B7,$W$13:$W$22) -> 0 | I7: =SUMIF($G$13:$L$22,B7,$W$13:$W$22)+SUMIF($N$13:$S$22,B7,$U$13:$U$22) -> 0 | J7: =(K7*3)+L7+(H7*0.001)-(I7*0.001)+(H7*0.00001) -> 0 | K7: =SUMPRODUCT(($G$13:$L$22=B7)*($Y$13:$Y$22=3))+SUMPRODUCT(($N$13:$S$22=B7)*($AA$13:$AA$22=3)) -> 0 | L7: =SUMPRODUCT(($G$13:$L$22=B7)*($Y$13:$Y$22=1))+SUMPRODUCT(($N$13:$S$22=B7)*($AA$13:$AA$22=1)) -> 0 | M7: =SUMPRODUCT(($G$13:$L$22=B7)*($Y$13:$Y$22=0))+SUMPRODUCT(($N$13:$S$22=B7)*($AA$13:$AA$22=0)) -> 0 | N7: =H7-I7 -> 0 | O7: =RANK(Y7,$Y$6:$Y$10,0) -> 1 | P7: =VLOOKUP(2,Voorrondes!$O$6:$V$10,2,FALSE) -> PB TEAM 4 | W7: =SUMIF($AF$13:$AK$22,P7,$AT$13:$AT$22)+SUMIF($AM$13:$AR$22,P7,$AV$13:$AV$22) -> 0 | X7: =SUMIF($AF$13:$AK$22,P7,$AV$13:$AV$22)+SUMIF($AM$13:$AR$22,P7,$AT$13:$AT$22) -> 0 | Y7: =(Z7*3)+AA7+(W7*0.001)-(X7*0.001)+(W7*0.00001) -> 0 | Z7: =SUMPRODUCT(($AF$13:$AK$22=P7)*($AX$13:$AX$22=3))+SUMPRODUCT(($AM$13:$AR$22=P7)*($AZ$13:$AZ$22=3)) -> 0 | AA7: =SUMPRODUCT(($AF$13:$AK$22=P7)*($AX$13:$AX$22=1))+SUMPRODUCT(($AM$13:$AR$22=P7)*($AZ$13:$AZ$22=1)) -> 0 | AB7: =SUMPRODUCT(($AF$13:$AK$22=P7)*($AX$13:$AX$22=0))+SUMPRODUCT(($AM$13:$AR$22=P7)*($AZ$13:$AZ$22=0)) -> 0 | AC7: =W7-X7 -> 0 | AD7: =RANK(AM7,$AM$6:$AM$10,0) -> 1 | AE7: =VLOOKUP(3,Voorrondes!$O$6:$V$10,2,FALSE) -> PB TEAM 1 | AK7: =SUMIF($G$25:$L$34,AE7,$U$25:$U$34)+SUMIF($N$25:$S$34,AE7,$W$25:$W$34) -> 0 | AL7: =SUMIF($G$25:$L$34,AE7,$W$25:$W$34)+SUMIF($N$25:$S$34,AE7,$U$25:$U$34) -> 0 | AM7: =(AN7*3)+AO7+(AK7*0.001)-(AL7*0.001)+(AK7*0.00001) -> 0 | AN7: =SUMPRODUCT(($G$25:$L$34=AE7)*($Y$25:$Y$34=3))+SUMPRODUCT(($N$25:$S$34=AE7)*($AA$25:$AA$34=3)) -> 0 | AO7: =SUMPRODUCT(($G$25:$L$34=AE7)*($Y$25:$Y$34=1))+SUMPRODUCT(($N$25:$S$34=AE7)*($AA$25:$AA$34=1)) -> 0 | AP7: =SUMPRODUCT(($G$25:$L$34=AE7)*($Y$25:$Y$34=0))+SUMPRODUCT(($N$25:$S$34=AE7)*($AA$25:$AA$34=0)) -> 0 | AQ7: =AK7-AL7 -> 0 | AR7: =RANK(BA7,$BA$6:$BA$10,0) -> 1 | AS7: =VLOOKUP(4,Voorrondes!$O$6:$V$10,2,FALSE) -> PB TEAM 3 | AY7: =SUMIF($AF$25:$AK$34,AS7,$AT$25:$AT$34)+SUMIF($AM$25:$AR$34,AS7,$AV$25:$AV$34) -> 0 | AZ7: =SUMIF($AF$25:$AK$34,AS7,$AV$25:$AV$34)+SUMIF($AM$25:$AR$34,AS7,$AT$25:$AT$34) -> 0 | BA7: =(BB7*3)+BC7+(AY7*0.001)-(AZ7*0.001)+(AY7*0.00001) -> 0 | BB7: =SUMPRODUCT(($AF$25:$AK$34=AS7)*($AX$25:$AX$34=3))+SUMPRODUCT(($AM$25:$AR$34=AS7)*($AZ$25:$AZ$34=3)) -> 0 | BC7: =SUMPRODUCT(($AF$25:$AK$34=AS7)*($AX$25:$AX$34=1))+SUMPRODUCT(($AM$25:$AR$34=AS7)*($AZ$25:$AZ$34=1)) -> 0 | BD7: =SUMPRODUCT(($AF$25:$AK$34=AS7)*($AX$25:$AX$34=0))+SUMPRODUCT(($AM$25:$AR$34=AS7)*($AZ$25:$AZ$34=0)) -> 0 | BE7: =AY7-AZ7 -> 0 | BF7: =RANK(BO7,$BO$6:$BO$10,0) -> 1 | BG7: =VLOOKUP(5,Voorrondes!$O$6:$V$10,2,FALSE) -> PB TEAM 5 | BM7: =SUMIF($G$38:$L$47,BG7,$U$38:$U$47)+SUMIF($N$38:$S$47,BG7,$W$38:$W$47) -> 0 | BN7: =SUMIF($G$38:$L$47,BG7,$W$38:$W$47)+SUMIF($N$38:$S$47,BG7,$U$38:$U$47) -> 0 | BO7: =(BP7*3)+BQ7+(BM7*0.001)-(BN7*0.001)+(BM7*0.00001) -> 0 | BP7: =SUMPRODUCT(($G$38:$L$47=BG7)*($Y$38:$Y$47=3))+SUMPRODUCT(($N$38:$S$47=BG7)*($AA$38:$AA$47=3)) -> 0 | BQ7: =SUMPRODUCT(($G$38:$L$47=BG7)*($Y$38:$Y$47=1))+SUMPRODUCT(($N$38:$S$47=BG7)*($AA$38:$AA$47=1)) -> 0 | BR7: =SUMPRODUCT(($G$38:$L$47=BG7)*($Y$38:$Y$47=0))+SUMPRODUCT(($N$38:$S$47=BG7)*($AA$38:$AA$47=0)) -> 0 | BS7: =BM7-BN7 -> 0
A8: =RANK(J8,$J$6:$J$10,0) -> 1 | B8: =VLOOKUP(1,Voorrondes!$AD$6:$AJ$10,2,FALSE) -> PC TEAM 5 | H8: =SUMIF($G$13:$L$22,B8,$U$13:$U$22)+SUMIF($N$13:$S$22,B8,$W$13:$W$22) -> 0 | I8: =SUMIF($G$13:$L$22,B8,$W$13:$W$22)+SUMIF($N$13:$S$22,B8,$U$13:$U$22) -> 0 | J8: 0 | K8: =SUMPRODUCT(($G$13:$L$22=B8)*($Y$13:$Y$22=3))+SUMPRODUCT(($N$13:$S$22=B8)*($AA$13:$AA$22=3)) -> 0 | L8: =SUMPRODUCT(($G$13:$L$22=B8)*($Y$13:$Y$22=1))+SUMPRODUCT(($N$13:$S$22=B8)*($AA$13:$AA$22=1)) -> 0 | M8: =SUMPRODUCT(($G$13:$L$22=B8)*($Y$13:$Y$22=0))+SUMPRODUCT(($N$13:$S$22=B8)*($AA$13:$AA$22=0)) -> 0 | N8: =H8-I8 -> 0 | O8: =RANK(Y8,$Y$6:$Y$10,0) -> 1 | P8: =VLOOKUP(2,Voorrondes!$AD$6:$AJ$10,2,FALSE) -> PC TEAM 1 | W8: =SUMIF($AF$13:$AK$22,P8,$AT$13:$AT$22)+SUMIF($AM$13:$AR$22,P8,$AV$13:$AV$22) -> 0 | X8: =SUMIF($AF$13:$AK$22,P8,$AV$13:$AV$22)+SUMIF($AM$13:$AR$22,P8,$AT$13:$AT$22) -> 0 | Y8: 0 | Z8: =SUMPRODUCT(($AF$13:$AK$22=P8)*($AX$13:$AX$22=3))+SUMPRODUCT(($AM$13:$AR$22=P8)*($AZ$13:$AZ$22=3)) -> 0 | AA8: =SUMPRODUCT(($AF$13:$AK$22=P8)*($AX$13:$AX$22=1))+SUMPRODUCT(($AM$13:$AR$22=P8)*($AZ$13:$AZ$22=1)) -> 0 | AB8: =SUMPRODUCT(($AF$13:$AK$22=P8)*($AX$13:$AX$22=0))+SUMPRODUCT(($AM$13:$AR$22=P8)*($AZ$13:$AZ$22=0)) -> 0 | AC8: =W8-X8 -> 0 | AD8: =RANK(AM8,$AM$6:$AM$10,0) -> 1 | AE8: =VLOOKUP(3,Voorrondes!$AD$6:$AJ$10,2,FALSE) -> PC TEAM 3 | AK8: =SUMIF($G$25:$L$34,AE8,$U$25:$U$34)+SUMIF($N$25:$S$34,AE8,$W$25:$W$34) -> 0 | AL8: =SUMIF($G$25:$L$34,AE8,$W$25:$W$34)+SUMIF($N$25:$S$34,AE8,$U$25:$U$34) -> 0 | AM8: 0 | AN8: =SUMPRODUCT(($G$25:$L$34=AE8)*($Y$25:$Y$34=3))+SUMPRODUCT(($N$25:$S$34=AE8)*($AA$25:$AA$34=3)) -> 0 | AO8: =SUMPRODUCT(($G$25:$L$34=AE8)*($Y$25:$Y$34=1))+SUMPRODUCT(($N$25:$S$34=AE8)*($AA$25:$AA$34=1)) -> 0 | AP8: =SUMPRODUCT(($G$25:$L$34=AE8)*($Y$25:$Y$34=0))+SUMPRODUCT(($N$25:$S$34=AE8)*($AA$25:$AA$34=0)) -> 0 | AQ8: =AK8-AL8 -> 0 | AR8: =RANK(BA8,$BA$6:$BA$10,0) -> 1 | AS8: =VLOOKUP(4,Voorrondes!$AD$6:$AJ$10,2,FALSE) -> PC TEAM 2 | AY8: =SUMIF($AF$25:$AK$34,AS8,$AT$25:$AT$34)+SUMIF($AM$25:$AR$34,AS8,$AV$25:$AV$34) -> 0 | AZ8: =SUMIF($AF$25:$AK$34,AS8,$AV$25:$AV$34)+SUMIF($AM$25:$AR$34,AS8,$AT$25:$AT$34) -> 0 | BA8: 0 | BB8: =SUMPRODUCT(($AF$25:$AK$34=AS8)*($AX$25:$AX$34=3))+SUMPRODUCT(($AM$25:$AR$34=AS8)*($AZ$25:$AZ$34=3)) -> 0 | BC8: =SUMPRODUCT(($AF$25:$AK$34=AS8)*($AX$25:$AX$34=1))+SUMPRODUCT(($AM$25:$AR$34=AS8)*($AZ$25:$AZ$34=1)) -> 0 | BD8: =SUMPRODUCT(($AF$25:$AK$34=AS8)*($AX$25:$AX$34=0))+SUMPRODUCT(($AM$25:$AR$34=AS8)*($AZ$25:$AZ$34=0)) -> 0 | BE8: =AY8-AZ8 -> 0 | BF8: 1 | BG8: =VLOOKUP(5,Voorrondes!$AD$6:$AJ$10,2,FALSE) -> PC TEAM 4 | BM8: =SUMIF($G$38:$L$47,BG8,$U$38:$U$47)+SUMIF($N$38:$S$47,BG8,$W$38:$W$47) -> 0 | BN8: =SUMIF($G$38:$L$47,BG8,$W$38:$W$47)+SUMIF($N$38:$S$47,BG8,$U$38:$U$47) -> 0 | BO8: 0 | BP8: =SUMPRODUCT(($G$38:$L$47=BG8)*($Y$38:$Y$47=3))+SUMPRODUCT(($N$38:$S$47=BG8)*($AA$38:$AA$47=3)) -> 0 | BQ8: =SUMPRODUCT(($G$38:$L$47=BG8)*($Y$38:$Y$47=1))+SUMPRODUCT(($N$38:$S$47=BG8)*($AA$38:$AA$47=1)) -> 0 | BR8: =SUMPRODUCT(($G$38:$L$47=BG8)*($Y$38:$Y$47=0))+SUMPRODUCT(($N$38:$S$47=BG8)*($AA$38:$AA$47=0)) -> 0 | BS8: =BM8-BN8 -> 0
A9: =RANK(J9,$J$6:$J$10,0) -> 1 | B9: =VLOOKUP(1,Voorrondes!$AR$6:$AX$10,2,FALSE) -> PD TEAM 3 | H9: =SUMIF($G$13:$L$22,B9,$U$13:$U$22)+SUMIF($N$13:$S$22,B9,$W$13:$W$22) -> 0 | I9: =SUMIF($G$13:$L$22,B9,$W$13:$W$22)+SUMIF($N$13:$S$22,B9,$U$13:$U$22) -> 0 | J9: 0 | K9: =SUMPRODUCT(($G$13:$L$22=B9)*($Y$13:$Y$22=3))+SUMPRODUCT(($N$13:$S$22=B9)*($AA$13:$AA$22=3)) -> 0 | L9: =SUMPRODUCT(($G$13:$L$22=B9)*($Y$13:$Y$22=1))+SUMPRODUCT(($N$13:$S$22=B9)*($AA$13:$AA$22=1)) -> 0 | M9: =SUMPRODUCT(($G$13:$L$22=B9)*($Y$13:$Y$22=0))+SUMPRODUCT(($N$13:$S$22=B9)*($AA$13:$AA$22=0)) -> 0 | N9: =H9-I9 -> 0 | O9: =RANK(Y9,$Y$6:$Y$10,0) -> 1 | P9: =VLOOKUP(2,Voorrondes!$AR$6:$AX$10,2,FALSE) -> PD TEAM 5 | W9: =SUMIF($AF$13:$AK$22,P9,$AT$13:$AT$22)+SUMIF($AM$13:$AR$22,P9,$AV$13:$AV$22) -> 0 | X9: =SUMIF($AF$13:$AK$22,P9,$AV$13:$AV$22)+SUMIF($AM$13:$AR$22,P9,$AT$13:$AT$22) -> 0 | Y9: 0 | Z9: =SUMPRODUCT(($AF$13:$AK$22=P9)*($AX$13:$AX$22=3))+SUMPRODUCT(($AM$13:$AR$22=P9)*($AZ$13:$AZ$22=3)) -> 0 | AA9: =SUMPRODUCT(($AF$13:$AK$22=P9)*($AX$13:$AX$22=1))+SUMPRODUCT(($AM$13:$AR$22=P9)*($AZ$13:$AZ$22=1)) -> 0 | AB9: =SUMPRODUCT(($AF$13:$AK$22=P9)*($AX$13:$AX$22=0))+SUMPRODUCT(($AM$13:$AR$22=P9)*($AZ$13:$AZ$22=0)) -> 0 | AC9: =W9-X9 -> 0 | AD9: =RANK(AM9,$AM$6:$AM$10,0) -> 1 | AE9: =VLOOKUP(3,Voorrondes!$AR$6:$AX$10,2,FALSE) -> PD TEAM 4 | AK9: =SUMIF($G$25:$L$34,AE9,$U$25:$U$34)+SUMIF($N$25:$S$34,AE9,$W$25:$W$34) -> 0 | AL9: =SUMIF($G$25:$L$34,AE9,$W$25:$W$34)+SUMIF($N$25:$S$34,AE9,$U$25:$U$34) -> 0 | AM9: 0 | AN9: =SUMPRODUCT(($G$25:$L$34=AE9)*($Y$25:$Y$34=3))+SUMPRODUCT(($N$25:$S$34=AE9)*($AA$25:$AA$34=3)) -> 0 | AO9: =SUMPRODUCT(($G$25:$L$34=AE9)*($Y$25:$Y$34=1))+SUMPRODUCT(($N$25:$S$34=AE9)*($AA$25:$AA$34=1)) -> 0 | AP9: =SUMPRODUCT(($G$25:$L$34=AE9)*($Y$25:$Y$34=0))+SUMPRODUCT(($N$25:$S$34=AE9)*($AA$25:$AA$34=0)) -> 0 | AQ9: =AK9-AL9 -> 0 | AR9: =RANK(BA9,$BA$6:$BA$10,0) -> 1 | AS9: =VLOOKUP(4,Voorrondes!$AR$6:$AX$10,2,FALSE) -> PD TEAM 1 | AY9: =SUMIF($AF$25:$AK$34,AS9,$AT$25:$AT$34)+SUMIF($AM$25:$AR$34,AS9,$AV$25:$AV$34) -> 0 | AZ9: =SUMIF($AF$25:$AK$34,AS9,$AV$25:$AV$34)+SUMIF($AM$25:$AR$34,AS9,$AT$25:$AT$34) -> 0 | BA9: 0 | BB9: =SUMPRODUCT(($AF$25:$AK$34=AS9)*($AX$25:$AX$34=3))+SUMPRODUCT(($AM$25:$AR$34=AS9)*($AZ$25:$AZ$34=3)) -> 0 | BC9: =SUMPRODUCT(($AF$25:$AK$34=AS9)*($AX$25:$AX$34=1))+SUMPRODUCT(($AM$25:$AR$34=AS9)*($AZ$25:$AZ$34=1)) -> 0 | BD9: =SUMPRODUCT(($AF$25:$AK$34=AS9)*($AX$25:$AX$34=0))+SUMPRODUCT(($AM$25:$AR$34=AS9)*($AZ$25:$AZ$34=0)) -> 0 | BE9: =AY9-AZ9 -> 0 | BF9: 1 | BG9: =VLOOKUP(5,Voorrondes!$AR$6:$AX$10,2,FALSE) -> PD TEAM 2 | BM9: =SUMIF($G$38:$L$47,BG9,$U$38:$U$47)+SUMIF($N$38:$S$47,BG9,$W$38:$W$47) -> 0 | BN9: =SUMIF($G$38:$L$47,BG9,$W$38:$W$47)+SUMIF($N$38:$S$47,BG9,$U$38:$U$47) -> 0 | BO9: 0 | BP9: =SUMPRODUCT(($G$38:$L$47=BG9)*($Y$38:$Y$47=3))+SUMPRODUCT(($N$38:$S$47=BG9)*($AA$38:$AA$47=3)) -> 0 | BQ9: =SUMPRODUCT(($G$38:$L$47=BG9)*($Y$38:$Y$47=1))+SUMPRODUCT(($N$38:$S$47=BG9)*($AA$38:$AA$47=1)) -> 0 | BR9: =SUMPRODUCT(($G$38:$L$47=BG9)*($Y$38:$Y$47=0))+SUMPRODUCT(($N$38:$S$47=BG9)*($AA$38:$AA$47=0)) -> 0 | BS9: =BM9-BN9 -> 0
A10: =RANK(J10,$J$6:$J$10,0) -> 1 | B10: =VLOOKUP(1,Voorrondes!$BF$6:$BL$10,2,FALSE) -> PE TEAM 4 | H10: =SUMIF($G$13:$L$22,B10,$U$13:$U$22)+SUMIF($N$13:$S$22,B10,$W$13:$W$22) -> 0 | I10: =SUMIF($G$13:$L$22,B10,$W$13:$W$22)+SUMIF($N$13:$S$22,B10,$U$13:$U$22) -> 0 | J10: 0 | K10: =SUMPRODUCT(($G$13:$L$22=B10)*($Y$13:$Y$22=3))+SUMPRODUCT(($N$13:$S$22=B10)*($AA$13:$AA$22=3)) -> 0 | L10: =SUMPRODUCT(($G$13:$L$22=B10)*($Y$13:$Y$22=1))+SUMPRODUCT(($N$13:$S$22=B10)*($AA$13:$AA$22=1)) -> 0 | M10: =SUMPRODUCT(($G$13:$L$22=B10)*($Y$13:$Y$22=0))+SUMPRODUCT(($N$13:$S$22=B10)*($AA$13:$AA$22=0)) -> 0 | N10: =H10-I10 -> 0 | O10: =RANK(Y10,$Y$6:$Y$10,0) -> 1 | P10: =VLOOKUP(2,Voorrondes!$BF$6:$BL$10,2,FALSE) -> PE TEAM 3 | W10: =SUMIF($AF$13:$AK$22,P10,$AT$13:$AT$22)+SUMIF($AM$13:$AR$22,P10,$AV$13:$AV$22) -> 0 | X10: =SUMIF($AF$13:$AK$22,P10,$AV$13:$AV$22)+SUMIF($AM$13:$AR$22,P10,$AT$13:$AT$22) -> 0 | Y10: 0 | Z10: =SUMPRODUCT(($AF$13:$AK$22=P10)*($AX$13:$AX$22=3))+SUMPRODUCT(($AM$13:$AR$22=P10)*($AZ$13:$AZ$22=3)) -> 0 | AA10: =SUMPRODUCT(($AF$13:$AK$22=P10)*($AX$13:$AX$22=1))+SUMPRODUCT(($AM$13:$AR$22=P10)*($AZ$13:$AZ$22=1)) -> 0 | AB10: =SUMPRODUCT(($AF$13:$AK$22=P10)*($AX$13:$AX$22=0))+SUMPRODUCT(($AM$13:$AR$22=P10)*($AZ$13:$AZ$22=0)) -> 0 | AC10: =W10-X10 -> 0 | AD10: =RANK(AM10,$AM$6:$AM$10,0) -> 1 | AE10: =VLOOKUP(3,Voorrondes!$BF$6:$BL$10,2,FALSE) -> PE TEAM 5 | AK10: =SUMIF($G$25:$L$34,AE10,$U$25:$U$34)+SUMIF($N$25:$S$34,AE10,$W$25:$W$34) -> 0 | AL10: =SUMIF($G$25:$L$34,AE10,$W$25:$W$34)+SUMIF($N$25:$S$34,AE10,$U$25:$U$34) -> 0 | AM10: 0 | AN10: =SUMPRODUCT(($G$25:$L$34=AE10)*($Y$25:$Y$34=3))+SUMPRODUCT(($N$25:$S$34=AE10)*($AA$25:$AA$34=3)) -> 0 | AO10: =SUMPRODUCT(($G$25:$L$34=AE10)*($Y$25:$Y$34=1))+SUMPRODUCT(($N$25:$S$34=AE10)*($AA$25:$AA$34=1)) -> 0 | AP10: =SUMPRODUCT(($G$25:$L$34=AE10)*($Y$25:$Y$34=0))+SUMPRODUCT(($N$25:$S$34=AE10)*($AA$25:$AA$34=0)) -> 0 | AQ10: =AK10-AL10 -> 0 | AR10: =RANK(BA10,$BA$6:$BA$10,0) -> 1 | AS10: =VLOOKUP(4,Voorrondes!$BF$6:$BL$10,2,FALSE) -> PE TEAM 2 | AY10: =SUMIF($AF$25:$AK$34,AS10,$AT$25:$AT$34)+SUMIF($AM$25:$AR$34,AS10,$AV$25:$AV$34) -> 0 | AZ10: =SUMIF($AF$25:$AK$34,AS10,$AV$25:$AV$34)+SUMIF($AM$25:$AR$34,AS10,$AT$25:$AT$34) -> 0 | BA10: 0 | BB10: =SUMPRODUCT(($AF$25:$AK$34=AS10)*($AX$25:$AX$34=3))+SUMPRODUCT(($AM$25:$AR$34=AS10)*($AZ$25:$AZ$34=3)) -> 0 | BC10: =SUMPRODUCT(($AF$25:$AK$34=AS10)*($AX$25:$AX$34=1))+SUMPRODUCT(($AM$25:$AR$34=AS10)*($AZ$25:$AZ$34=1)) -> 0 | BD10: =SUMPRODUCT(($AF$25:$AK$34=AS10)*($AX$25:$AX$34=0))+SUMPRODUCT(($AM$25:$AR$34=AS10)*($AZ$25:$AZ$34=0)) -> 0 | BE10: =AY10-AZ10 -> 0 | BF10: 1 | BG10: =VLOOKUP(5,Voorrondes!$BF$6:$BL$10,2,FALSE) -> PE TEAM 1 | BM10: =SUMIF($G$38:$L$47,BG10,$U$38:$U$47)+SUMIF($N$38:$S$47,BG10,$W$38:$W$47) -> 0 | BN10: =SUMIF($G$38:$L$47,BG10,$W$38:$W$47)+SUMIF($N$38:$S$47,BG10,$U$38:$U$47) -> 0 | BO10: 0 | BP10: =SUMPRODUCT(($G$38:$L$47=BG10)*($Y$38:$Y$47=3))+SUMPRODUCT(($N$38:$S$47=BG10)*($AA$38:$AA$47=3)) -> 0 | BQ10: =SUMPRODUCT(($G$38:$L$47=BG10)*($Y$38:$Y$47=1))+SUMPRODUCT(($N$38:$S$47=BG10)*($AA$38:$AA$47=1)) -> 0 | BR10: =SUMPRODUCT(($G$38:$L$47=BG10)*($Y$38:$Y$47=0))+SUMPRODUCT(($N$38:$S$47=BG10)*($AA$38:$AA$47=0)) -> 0 | BS10: =BM10-BN10 -> 0
D12: Tijd | G12: VELD 1 | U12: Uitslag | Y12: Punten | AC12: Tijd | AF12: VELD 2 | AT12: Uitslag | AX12: Punten
D13: 09:00:00 | G13: =B6 -> PA TEAM 4 | M13: -- | N13: =B7 -> PB TEAM 2 | V13: -- | Y13: =IF(U13="","",IF(U13>W13,3,IF(U13=W13,1,0))) ->  | AA13: =IF(W13="","",IF(W13>U13,3,IF(W13=U13,1,0))) ->  | AC13: 09:00:00 | AF13: =P6 -> PA TEAM 3 | AL13: -- | AM13: =P7 -> PB TEAM 4 | AU13: -- | AX13: =IF(AT13="","",IF(AT13>AV13,3,IF(AT13=AV13,1,0))) ->  | AZ13: =IF(AV13="","",IF(AV13>AT13,3,IF(AV13=AT13,1,0))) -> 
D14: 09:20:00 | G14: =B8 -> PC TEAM 5 | M14: -- | N14: =B9 -> PD TEAM 3 | V14: -- | Y14: =IF(U14="","",IF(U14>W14,3,IF(U14=W14,1,0))) ->  | AA14: =IF(W14="","",IF(W14>U14,3,IF(W14=U14,1,0))) ->  | AC14: 09:20:00 | AF14: =P8 -> PC TEAM 1 | AL14: -- | AM14: =P9 -> PD TEAM 5 | AU14: -- | AX14: =IF(AT14="","",IF(AT14>AV14,3,IF(AT14=AV14,1,0))) ->  | AZ14: =IF(AV14="","",IF(AV14>AT14,3,IF(AV14=AT14,1,0))) -> 
D15: 09:40:00 | G15: =B10 -> PE TEAM 4 | M15: -- | N15: =B6 -> PA TEAM 4 | V15: -- | Y15: =IF(U15="","",IF(U15>W15,3,IF(U15=W15,1,0))) ->  | AC15: 09:40:00 | AF15: =P10 -> PE TEAM 3 | AL15: -- | AM15: =P6 -> PA TEAM 3 | AU15: -- | AX15: =IF(AT15="","",IF(AT15>AV15,3,IF(AT15=AV15,1,0))) -> 
D16: 10:00:00 | G16: =B7 -> PB TEAM 2 | M16: -- | N16: =B8 -> PC TEAM 5 | V16: -- | AC16: 10:00:00 | AF16: =P7 -> PB TEAM 4 | AL16: -- | AM16: =P8 -> PC TEAM 1 | AU16: --
D17: 10:20:00 | G17: =B10 -> PE TEAM 4 | M17: -- | N17: =B9 -> PD TEAM 3 | V17: -- | AC17: 10:20:00 | AF17: =P10 -> PE TEAM 3 | AL17: -- | AM17: =P9 -> PD TEAM 5 | AU17: --
D18: 10:40:00 | G18: =B6 -> PA TEAM 4 | M18: -- | N18: =B8 -> PC TEAM 5 | V18: -- | AC18: 10:40:00 | AF18: =P6 -> PA TEAM 3 | AL18: -- | AM18: =P8 -> PC TEAM 1 | AU18: --
D19: 11:00:00 | G19: =B7 -> PB TEAM 2 | M19: -- | N19: =B10 -> PE TEAM 4 | V19: -- | AC19: 11:00:00 | AF19: =P7 -> PB TEAM 4 | AL19: -- | AM19: =P10 -> PE TEAM 3 | AU19: --
D20: 11:20:00 | G20: =B9 -> PD TEAM 3 | M20: -- | N20: =B6 -> PA TEAM 4 | V20: -- | AC20: 11:20:00 | AF20: =P9 -> PD TEAM 5 | AL20: -- | AM20: =P6 -> PA TEAM 3 | AU20: --
D21: 11:40:00 | G21: =B8 -> PC TEAM 5 | M21: -- | N21: =B10 -> PE TEAM 4 | V21: -- | AC21: 11:40:00 | AF21: =P8 -> PC TEAM 1 | AL21: -- | AM21: =P10 -> PE TEAM 3 | AU21: --
D22: 12:00:00 | G22: =B9 -> PD TEAM 3 | M22: -- | N22: =B7 -> PB TEAM 2 | V22: -- | AC22: 12:00:00 | AF22: =P9 -> PD TEAM 5 | AL22: -- | AM22: =P7 -> PB TEAM 4 | AU22: --
D24: Tijd | G24: VELD 3 | U24: Uitslag | Y24: Punten | AC24: Tijd | AF24: VELD 4 | AT24: Uitslag | AX24: Punten
D25: 09:00:00 | G25: =AE6 -> PA TEAM 1 | M25: -- | N25: =AE7 -> PB TEAM 1 | V25: -- | Y25: =IF(U25="","",IF(U25>W25,3,IF(U25=W25,1,0))) ->  | AA25: =IF(W25="","",IF(W25>U25,3,IF(W25=U25,1,0))) ->  | AC25: 09:00:00 | AF25: =AS6 -> PA TEAM 5 | AL25: -- | AM25: =AS7 -> PB TEAM 3 | AU25: -- | AX25: =IF(AT25="","",IF(AT25>AV25,3,IF(AT25=AV25,1,0))) ->  | AZ25: =IF(AV25="","",IF(AV25>AT25,3,IF(AV25=AT25,1,0))) -> 
D26: 09:20:00 | G26: =AE8 -> PC TEAM 3 | M26: -- | N26: =AE9 -> PD TEAM 4 | V26: -- | Y26: =IF(U26="","",IF(U26>W26,3,IF(U26=W26,1,0))) ->  | AA26: =IF(W26="","",IF(W26>U26,3,IF(W26=U26,1,0))) ->  | AC26: 09:20:00 | AF26: =AS8 -> PC TEAM 2 | AL26: -- | AM26: =AS9 -> PD TEAM 1 | AU26: -- | AX26: =IF(AT26="","",IF(AT26>AV26,3,IF(AT26=AV26,1,0))) ->  | AZ26: =IF(AV26="","",IF(AV26>AT26,3,IF(AV26=AT26,1,0))) -> 
D27: 09:40:00 | G27: =AE10 -> PE TEAM 5 | M27: -- | N27: =AE6 -> PA TEAM 1 | V27: -- | Y27: =IF(U27="","",IF(U27>W27,3,IF(U27=W27,1,0))) ->  | AC27: 09:40:00 | AF27: =AS10 -> PE TEAM 2 | AL27: -- | AM27: =AS6 -> PA TEAM 5 | AU27: -- | AX27: =IF(AT27="","",IF(AT27>AV27,3,IF(AT27=AV27,1,0))) -> 
D28: 10:00:00 | G28: =AE7 -> PB TEAM 1 | M28: -- | N28: =AE8 -> PC TEAM 3 | V28: -- | AC28: 10:00:00 | AF28: =AS7 -> PB TEAM 3 | AL28: -- | AM28: =AS8 -> PC TEAM 2 | AU28: --
D29: 10:20:00 | G29: =AE10 -> PE TEAM 5 | M29: -- | N29: =AE9 -> PD TEAM 4 | V29: -- | AC29: 10:20:00 | AF29: =AS10 -> PE TEAM 2 | AL29: -- | AM29: =AS9 -> PD TEAM 1 | AU29: --
D30: 10:40:00 | G30: =AE6 -> PA TEAM 1 | M30: -- | N30: =AE8 -> PC TEAM 3 | V30: -- | AC30: 10:40:00 | AF30: =AS6 -> PA TEAM 5 | AL30: -- | AM30: =AS8 -> PC TEAM 2 | AU30: --
D31: 11:00:00 | G31: =AE7 -> PB TEAM 1 | M31: -- | N31: =AE10 -> PE TEAM 5 | V31: -- | AC31: 11:00:00 | AF31: =AS7 -> PB TEAM 3 | AL31: -- | AM31: =AS10 -> PE TEAM 2 | AU31: --
D32: 11:20:00 | G32: =AE9 -> PD TEAM 4 | M32: -- | N32: =AE6 -> PA TEAM 1 | V32: -- | AC32: 11:20:00 | AF32: =AS9 -> PD TEAM 1 | AL32: -- | AM32: =AS6 -> PA TEAM 5 | AU32: --
D33: 11:40:00 | G33: =AE8 -> PC TEAM 3 | M33: -- | N33: =AE10 -> PE TEAM 5 | V33: -- | AC33: 11:40:00 | AF33: =AS8 -> PC TEAM 2 | AL33: -- | AM33: =AS10 -> PE TEAM 2 | AU33: --
D34: 12:00:00 | G34: =AE9 -> PD TEAM 4 | M34: -- | N34: =AE7 -> PB TEAM 1 | V34: -- | AC34: 12:00:00 | AF34: =AS9 -> PD TEAM 1 | AL34: -- | AM34: =AS7 -> PB TEAM 3 | AU34: --
D37: Tijd | G37: VELD 5 | U37: Uitslag | Y37: Punten | AC37: Tijd
D38: 09:00:00 | G38: =BG6 -> PA TEAM 2 | M38: -- | N38: =BG7 -> PB TEAM 5 | V38: -- | Y38: =IF(U38="","",IF(U38>W38,3,IF(U38=W38,1,0))) ->  | AA38: =IF(W38="","",IF(W38>U38,3,IF(W38=U38,1,0))) ->  | AC38: 09:00:00
D39: 09:20:00 | G39: =BG8 -> PC TEAM 4 | M39: -- | N39: =BG9 -> PD TEAM 2 | V39: -- | Y39: =IF(U39="","",IF(U39>W39,3,IF(U39=W39,1,0))) ->  | AA39: =IF(W39="","",IF(W39>U39,3,IF(W39=U39,1,0))) ->  | AC39: 09:20:00
D40: 09:40:00 | G40: =BG10 -> PE TEAM 1 | M40: -- | N40: =BG6 -> PA TEAM 2 | V40: -- | Y40: =IF(U40="","",IF(U40>W40,3,IF(U40=W40,1,0))) ->  | AC40: 09:40:00
D41: 10:00:00 | G41: =BG7 -> PB TEAM 5 | M41: -- | N41: =BG8 -> PC TEAM 4 | V41: -- | AC41: 10:00:00
D42: 10:20:00 | G42: =BG10 -> PE TEAM 1 | M42: -- | N42: =BG9 -> PD TEAM 2 | V42: -- | AC42: 10:20:00
D43: 10:40:00 | G43: =BG6 -> PA TEAM 2 | M43: -- | N43: =BG8 -> PC TEAM 4 | V43: -- | AC43: 10:40:00
D44: 11:00:00 | G44: =BG7 -> PB TEAM 5 | M44: -- | N44: =BG10 -> PE TEAM 1 | V44: -- | AC44: 11:00:00
D45: 11:20:00 | G45: =BG9 -> PD TEAM 2 | M45: -- | N45: =BG6 -> PA TEAM 2 | V45: -- | AC45: 11:20:00
D46: 11:40:00 | G46: =BG8 -> PC TEAM 4 | M46: -- | N46: =BG10 -> PE TEAM 1 | V46: -- | AC46: 11:40:00
D47: 12:00:00 | G47: =BG9 -> PD TEAM 2 | M47: -- | N47: =BG7 -> PB TEAM 5 | V47: -- | AC47: 12:00:00
D49: (zie verder op het volgende blad)

Sheet VGROEP-1
A1: Groep 1 Voorronde | M1: SCORES BY: OnlineExcelCursus.NL
A2: =Voorrondes!D12 -> Tijd | B2: =Voorrondes!E12 -> 0 | C2: =Voorrondes!G12 -> VELD 1 | F2: =Voorrondes!U12 -> Uitslag | J2: =Voorrondes!Y12 -> Punten
A3: =Voorrondes!D13 -> 09:00:00 | B3: =Voorrondes!E13 -> 00:00:00 | C3: =Voorrondes!G13 -> PA TEAM 1 | D3: =Voorrondes!M13 -> -- | E3: =Voorrondes!N13 -> PA TEAM 2 | F3: =Voorrondes!U13 -> 3 | G3: =Voorrondes!V13 -> -- | H3: =Voorrondes!W13 -> 2 | J3: =Voorrondes!Y13 -> 3 | L3: =Voorrondes!AA13 -> 0
A4: =Voorrondes!D14 -> 09:20:00 | B4: =Voorrondes!E14 -> 00:00:00 | C4: =Voorrondes!G14 -> PA TEAM 3 | D4: =Voorrondes!M14 -> -- | E4: =Voorrondes!N14 -> PA TEAM 4 | F4: =Voorrondes!U14 -> 0 | G4: =Voorrondes!V14 -> -- | H4: =Voorrondes!W14 -> 0 | J4: =Voorrondes!Y14 -> 1 | L4: =Voorrondes!AA14 -> 1
A5: =Voorrondes!D15 -> 09:40:00 | B5: =Voorrondes!E15 -> 00:00:00 | C5: =Voorrondes!G15 -> PA TEAM 5 | D5: =Voorrondes!M15 -> -- | E5: =Voorrondes!N15 -> PA TEAM 1 | F5: =Voorrondes!U15 -> 5 | G5: =Voorrondes!V15 -> -- | H5: =Voorrondes!W15 -> 5 | J5: =Voorrondes!Y15 -> 1 | L5: =Voorrondes!AA15 -> 1
A6: =Voorrondes!D16 -> 10:00:00 | B6: =Voorrondes!E16 -> 00:00:00 | C6: =Voorrondes!G16 -> PA TEAM 2 | D6: =Voorrondes!M16 -> -- | E6: =Voorrondes!N16 -> PA TEAM 3 | F6: =Voorrondes!U16 -> 6 | G6: =Voorrondes!V16 -> -- | H6: =Voorrondes!W16 -> 3 | J6: =Voorrondes!Y16 -> 3 | L6: =Voorrondes!AA16 -> 0
A7: =Voorrondes!D17 -> 10:20:00 | B7: =Voorrondes!E17 -> 00:00:00 | C7: =Voorrondes!G17 -> PA TEAM 5 | D7: =Voorrondes!M17 -> -- | E7: =Voorrondes!N17 -> PA TEAM 4 | F7: =Voorrondes!U17 -> 2 | G7: =Voorrondes!V17 -> -- | H7: =Voorrondes!W17 -> 8 | J7: =Voorrondes!Y17 -> 0 | L7: =Voorrondes!AA17 -> 3
A8: =Voorrondes!D18 -> 10:40:00 | B8: =Voorrondes!E18 -> 00:00:00 | C8: =Voorrondes!G18 -> PA TEAM 1 | D8: =Voorrondes!M18 -> -- | E8: =Voorrondes!N18 -> PA TEAM 3 | F8: =Voorrondes!U18 -> 3 | G8: =Voorrondes!V18 -> -- | H8: =Voorrondes!W18 -> 5 | J8: =Voorrondes!Y18 -> 0 | L8: =Voorrondes!AA18 -> 3
A9: =Voorrondes!D19 -> 11:00:00 | B9: =Voorrondes!E19 -> 00:00:00 | C9: =Voorrondes!G19 -> PA TEAM 2 | D9: =Voorrondes!M19 -> -- | E9: =Voorrondes!N19 -> PA TEAM 5 | F9: =Voorrondes!U19 -> 1 | G9: =Voorrondes!V19 -> -- | H9: =Voorrondes!W19 -> 2 | J9: =Voorrondes!Y19 -> 0 | L9: =Voorrondes!AA19 -> 3
A10: =Voorrondes!D20 -> 11:20:00 | B10: =Voorrondes!E20 -> 00:00:00 | C10: =Voorrondes!G20 -> PA TEAM 4 | D10: =Voorrondes!M20 -> -- | E10: =Voorrondes!N20 -> PA TEAM 1 | F10: =Voorrondes!U20 -> 0 | G10: =Voorrondes!V20 -> -- | H10: =Voorrondes!W20 -> 0 | J10: =Voorrondes!Y20 -> 1 | L10: =Voorrondes!AA20 -> 1
A11: =Voorrondes!D21 -> 11:40:00 | B11: =Voorrondes!E21 -> 00:00:00 | C11: =Voorrondes!G21 -> PA TEAM 3 | D11: =Voorrondes!M21 -> -- | E11: =Voorrondes!N21 -> PA TEAM 5 | F11: =Voorrondes!U21 -> 3 | G11: =Voorrondes!V21 -> -- | H11: =Voorrondes!W21 -> 2 | J11: =Voorrondes!Y21 -> 3 | L11: =Voorrondes!AA21 -> 0
A12: =Voorrondes!D22 -> 12:00:00 | B12: =Voorrondes!E22 -> 00:00:00 | C12: =Voorrondes!G22 -> PA TEAM 4 | D12: =Voorrondes!M22 -> -- | E12: =Voorrondes!N22 -> PA TEAM 2 | F12: =Voorrondes!U22 -> 2 | G12: =Voorrondes!V22 -> -- | H12: =Voorrondes!W22 -> 1 | J12: =Voorrondes!Y22 -> 3 | L12: =Voorrondes!AA22 -> 0
A15: =Voorrondes!A3 -> Stand | B15: =Voorrondes!B5 -> Poule A | F15: Voor | G15: Tegen | H15: Punten | I15: =Voorrondes!K3 -> Gewonnen | J15: =Voorrondes!L3 -> Gelijk | K15: =Voorrondes!M3 -> Verloren | L15: =Voorrondes!N3 -> Saldo
A16: 1 | B16: =VLOOKUP(A16,Voorrondes!$A$6:$N$10,2,FALSE) -> PA TEAM 4 | F16: =VLOOKUP($A$16,Voorrondes!$A$6:$N$10,8,FALSE) -> 10 | G16: =VLOOKUP($A$16,Voorrondes!$A$6:$N$10,9,FALSE) -> 3 | H16: =VLOOKUP($A$16,Voorrondes!$A$6:$N$10,10,FALSE) -> 8.0071 | I16: =VLOOKUP($A$16,Voorrondes!$A$6:$N$10,11,FALSE) -> 2 | J16: =VLOOKUP($A$16,Voorrondes!$A$6:$N$10,12,FALSE) -> 2 | K16: =VLOOKUP($A$16,Voorrondes!$A$6:$N$10,13,FALSE) -> 0 | L16: =VLOOKUP($A$16,Voorrondes!$A$6:$N$10,14,FALSE) -> 7
A17: 2 | B17: =VLOOKUP(A17,Voorrondes!$A$6:$N$10,2,FALSE) -> PA TEAM 3 | F17: =VLOOKUP($A$17,Voorrondes!$A$6:$N$10,8,FALSE) -> 11 | G17: =VLOOKUP($A$17,Voorrondes!$A$6:$N$10,9,FALSE) -> 11 | H17: =VLOOKUP($A$17,Voorrondes!$A$6:$N$10,10,FALSE) -> 7.00011 | I17: =VLOOKUP($A$17,Voorrondes!$A$6:$N$10,11,FALSE) -> 2 | J17: =VLOOKUP($A$17,Voorrondes!$A$6:$N$10,12,FALSE) -> 1 | K17: =VLOOKUP($A$17,Voorrondes!$A$6:$N$10,13,FALSE) -> 1 | L17: =VLOOKUP($A$17,Voorrondes!$A$6:$N$10,14,FALSE) -> 0
A18: 3 | B18: =VLOOKUP(A18,Voorrondes!$A$6:$N$10,2,FALSE) -> PA TEAM 1 | F18: =VLOOKUP($A$18,Voorrondes!$A$6:$N$10,8,FALSE) -> 11 | G18: =VLOOKUP($A$18,Voorrondes!$A$6:$N$10,9,FALSE) -> 12 | H18: =VLOOKUP($A$18,Voorrondes!$A$6:$N$10,10,FALSE) -> 4.99911 | I18: =VLOOKUP($A$18,Voorrondes!$A$6:$N$10,11,FALSE) -> 1 | J18: =VLOOKUP($A$18,Voorrondes!$A$6:$N$10,12,FALSE) -> 2 | K18: =VLOOKUP($A$18,Voorrondes!$A$6:$N$10,13,FALSE) -> 1 | L18: =VLOOKUP($A$18,Voorrondes!$A$6:$N$10,14,FALSE) -> -1
A19: 4 | B19: =VLOOKUP(A19,Voorrondes!$A$6:$N$10,2,FALSE) -> PA TEAM 5 | F19: =VLOOKUP($A$19,Voorrondes!$A$6:$N$10,8,FALSE) -> 11 | G19: =VLOOKUP($A$19,Voorrondes!$A$6:$N$10,9,FALSE) -> 17 | H19: =VLOOKUP($A$19,Voorrondes!$A$6:$N$10,10,FALSE) -> 3.99411 | I19: =VLOOKUP($A$19,Voorrondes!$A$6:$N$10,11,FALSE) -> 1 | J19: =VLOOKUP($A$19,Voorrondes!$A$6:$N$10,12,FALSE) -> 1 | K19: =VLOOKUP($A$19,Voorrondes!$A$6:$N$10,13,FALSE) -> 2 | L19: =VLOOKUP($A$19,Voorrondes!$A$6:$N$10,14,FALSE) -> -6
A20: 5 | B20: =VLOOKUP(A20,Voorrondes!$A$6:$N$10,2,FALSE) -> PA TEAM 2 | F20: =VLOOKUP($A$20,Voorrondes!$A$6:$N$10,8,FALSE) -> 10 | G20: =VLOOKUP($A$20,Voorrondes!$A$6:$N$10,9,FALSE) -> 10 | H20: =VLOOKUP($A$20,Voorrondes!$A$6:$N$10,10,FALSE) -> 3.0001 | I20: =VLOOKUP($A$20,Voorrondes!$A$6:$N$10,11,FALSE) -> 1 | J20: =VLOOKUP($A$20,Voorrondes!$A$6:$N$10,12,FALSE) -> 0 | K20: =VLOOKUP($A$20,Voorrondes!$A$6:$N$10,13,FALSE) -> 3 | L20: =VLOOKUP($A$20,Voorrondes!$A$6:$N$10,14,FALSE) -> 0

Sheet VGROEP-2
A1: Groep 2 Voorronde | M1: SCORES BY: OnlineExcelCursus.NL
A2: =Voorrondes!AC12 -> Tijd | C2: =Voorrondes!AF12 -> VELD 2 | F2: =Voorrondes!AT12 -> Uitslag | J2: =Voorrondes!AX12 -> Punten
A3: =Voorrondes!AC13 -> 09:00:00 | B3: =Voorrondes!AD13 -> 00:00:00 | C3: =Voorrondes!AF13 -> PB TEAM 1 | D3: =Voorrondes!AL13 -> -- | E3: =Voorrondes!AM13 -> PB TEAM 2 | F3: =Voorrondes!AT13 -> 1 | G3: =Voorrondes!AU13 -> -- | H3: =Voorrondes!AV13 -> 8 | J3: =Voorrondes!AX13 -> 0 | L3: =Voorrondes!AZ13 -> 3
A4: =Voorrondes!AC14 -> 09:20:00 | B4: =Voorrondes!AD14 -> 00:00:00 | C4: =Voorrondes!AF14 -> PB TEAM 3 | D4: =Voorrondes!AL14 -> -- | E4: =Voorrondes!AM14 -> PB TEAM 4 | F4: =Voorrondes!AT14 -> 2 | G4: =Voorrondes!AU14 -> -- | H4: =Voorrondes!AV14 -> 6 | J4: =Voorrondes!AX14 -> 0 | L4: =Voorrondes!AZ14 -> 3
A5: =Voorrondes!AC15 -> 09:40:00 | B5: =Voorrondes!AD15 -> 00:00:00 | C5: =Voorrondes!AF15 -> PB TEAM 5 | D5: =Voorrondes!AL15 -> -- | E5: =Voorrondes!AM15 -> PB TEAM 1 | F5: =Voorrondes!AT15 -> 3 | G5: =Voorrondes!AU15 -> -- | H5: =Voorrondes!AV15 -> 8 | J5: =Voorrondes!AX15 -> 0 | L5: =Voorrondes!AZ15 -> 3
A6: =Voorrondes!AC16 -> 10:00:00 | B6: =Voorrondes!AD16 -> 00:00:00 | C6: =Voorrondes!AF16 -> PB TEAM 2 | D6: =Voorrondes!AL16 -> -- | E6: =Voorrondes!AM16 -> PB TEAM 3 | F6: =Voorrondes!AT16 -> 4 | G6: =Voorrondes!AU16 -> -- | H6: =Voorrondes!AV16 -> 4 | J6: =Voorrondes!AX16 -> 1 | L6: =Voorrondes!AZ16 -> 1
A7: =Voorrondes!AC17 -> 10:20:00 | B7: =Voorrondes!AD17 -> 00:00:00 | C7: =Voorrondes!AF17 -> PB TEAM 5 | D7: =Voorrondes!AL17 -> -- | E7: =Voorrondes!AM17 -> PB TEAM 4 | F7: =Voorrondes!AT17 -> 2 | G7: =Voorrondes!AU17 -> -- | H7: =Voorrondes!AV17 -> 3 | J7: =Voorrondes!AX17 -> 0 | L7: =Voorrondes!AZ17 -> 3
A8: =Voorrondes!AC18 -> 10:40:00 | B8: =Voorrondes!AD18 -> 00:00:00 | C8: =Voorrondes!AF18 -> PB TEAM 1 | D8: =Voorrondes!AL18 -> -- | E8: =Voorrondes!AM18 -> PB TEAM 3 | F8: =Voorrondes!AT18 -> 1 | G8: =Voorrondes!AU18 -> -- | H8: =Voorrondes!AV18 -> 6 | J8: =Voorrondes!AX18 -> 0 | L8: =Voorrondes!AZ18 -> 3
A9: =Voorrondes!AC19 -> 11:00:00 | B9: =Voorrondes!AD19 -> 00:00:00 | C9: =Voorrondes!AF19 -> PB TEAM 2 | D9: =Voorrondes!AL19 -> -- | E9: =Voorrondes!AM19 -> PB TEAM 5 | F9: =Voorrondes!AT19 -> 1 | G9: =Voorrondes!AU19 -> -- | H9: =Voorrondes!AV19 -> 2 | J9: =Voorrondes!AX19 -> 0 | L9: =Voorrondes!AZ19 -> 3
A10: =Voorrondes!AC20 -> 11:20:00 | B10: =Voorrondes!AD20 -> 00:00:00 | C10: =Voorrondes!AF20 -> PB TEAM 4 | D10: =Voorrondes!AL20 -> -- | E10: =Voorrondes!AM20 -> PB TEAM 1 | F10: =Voorrondes!AT20 -> 3 | G10: =Voorrondes!AU20 -> -- | H10: =Voorrondes!AV20 -> 5 | J10: =Voorrondes!AX20 -> 0 | L10: =Voorrondes!AZ20 -> 3
A11: =Voorrondes!AC21 -> 11:40:00 | B11: =Voorrondes!AD21 -> 00:00:00 | C11: =Voorrondes!AF21 -> PB TEAM 3 | D11: =Voorrondes!AL21 -> -- | E11: =Voorrondes!AM21 -> PB TEAM 5 | F11: =Voorrondes!AT21 -> 2 | G11: =Voorrondes!AU21 -> -- | H11: =Voorrondes!AV21 -> 2 | J11: =Voorrondes!AX21 -> 1 | L11: =Voorrondes!AZ21 -> 1
A12: =Voorrondes!AC22 -> 12:00:00 | B12: =Voorrondes!AD22 -> 00:00:00 | C12: =Voorrondes!AF22 -> PB TEAM 4 | D12: =Voorrondes!AL22 -> -- | E12: =Voorrondes!AM22 -> PB TEAM 2 | F12: =Voorrondes!AT22 -> 0 | G12: =Voorrondes!AU22 -> -- | H12: =Voorrondes!AV22 -> 3 | J12: =Voorrondes!AX22 -> 0 | L12: =Voorrondes!AZ22 -> 3
A15: Stand | B15: =Voorrondes!P5 -> Poule B | F15: Voor | G15: Tegen | H15: Punten | I15: =Voorrondes!Z3 -> Gewonnen | J15: =Voorrondes!AA3 -> Gelijk | K15: =Voorrondes!AB3 -> Verloren | L15: =Voorrondes!AC3 -> Saldo
A16: 1 | B16: =VLOOKUP(A16,Voorrondes!$O$6:$AC$10,2,FALSE) -> PB TEAM 2 | F16: =VLOOKUP($A16,Voorrondes!$O$6:$AC$10,9,FALSE) -> 16 | G16: =VLOOKUP($A16,Voorrondes!$O$6:$AC$10,10,FALSE) -> 7 | H16: =VLOOKUP($A16,Voorrondes!$O$6:$AC$10,11,FALSE) -> 7.00916 | I16: =VLOOKUP($A16,Voorrondes!$O$6:$AC$10,12,FALSE) -> 2 | J16: =VLOOKUP($A16,Voorrondes!$O$6:$AC$10,13,FALSE) -> 1 | K16: =VLOOKUP($A16,Voorrondes!$O$6:$AC$10,14,FALSE) -> 1 | L16: =VLOOKUP($A16,Voorrondes!$O$6:$AC$10,15,FALSE) -> 9
A17: 2 | B17: =VLOOKUP(A17,Voorrondes!$O$6:$AC$10,2,FALSE) -> PB TEAM 4 | F17: =VLOOKUP($A17,Voorrondes!$O$6:$AC$10,9,FALSE) -> 12 | G17: =VLOOKUP($A17,Voorrondes!$O$6:$AC$10,10,FALSE) -> 12 | H17: =VLOOKUP($A17,Voorrondes!$O$6:$AC$10,11,FALSE) -> 6.00012 | I17: =VLOOKUP($A17,Voorrondes!$O$6:$AC$10,12,FALSE) -> 2 | J17: =VLOOKUP($A17,Voorrondes!$O$6:$AC$10,13,FALSE) -> 0 | K17: =VLOOKUP($A17,Voorrondes!$O$6:$AC$10,14,FALSE) -> 2 | L17: =VLOOKUP($A17,Voorrondes!$O$6:$AC$10,15,FALSE) -> 0
A18: 3 | B18: =VLOOKUP(A18,Voorrondes!$O$6:$AC$10,2,FALSE) -> PB TEAM 1 | F18: =VLOOKUP($A18,Voorrondes!$O$6:$AC$10,9,FALSE) -> 15 | G18: =VLOOKUP($A18,Voorrondes!$O$6:$AC$10,10,FALSE) -> 20 | H18: =VLOOKUP($A18,Voorrondes!$O$6:$AC$10,11,FALSE) -> 5.99515 | I18: =VLOOKUP($A18,Voorrondes!$O$6:$AC$10,12,FALSE) -> 2 | J18: =VLOOKUP($A18,Voorrondes!$O$6:$AC$10,13,FALSE) -> 0 | K18: =VLOOKUP($A18,Voorrondes!$O$6:$AC$10,14,FALSE) -> 2 | L18: =VLOOKUP($A18,Voorrondes!$O$6:$AC$10,15,FALSE) -> -5
A19: 4 | B19: =VLOOKUP(A19,Voorrondes!$O$6:$AC$10,2,FALSE) -> PB TEAM 3 | F19: =VLOOKUP($A19,Voorrondes!$O$6:$AC$10,9,FALSE) -> 14 | G19: =VLOOKUP($A19,Voorrondes!$O$6:$AC$10,10,FALSE) -> 13 | H19: =VLOOKUP($A19,Voorrondes!$O$6:$AC$10,11,FALSE) -> 5.00114 | I19: =VLOOKUP($A19,Voorrondes!$O$6:$AC$10,12,FALSE) -> 1 | J19: =VLOOKUP($A19,Voorrondes!$O$6:$AC$10,13,FALSE) -> 2 | K19: =VLOOKUP($A19,Voorrondes!$O$6:$AC$10,14,FALSE) -> 1 | L19: =VLOOKUP($A19,Voorrondes!$O$6:$AC$10,15,FALSE) -> 1
A20: 5 | B20: =VLOOKUP(A20,Voorrondes!$O$6:$AC$10,2,FALSE) -> PB TEAM 5 | F20: =VLOOKUP($A20,Voorrondes!$O$6:$AC$10,9,FALSE) -> 9 | G20: =VLOOKUP($A20,Voorrondes!$O$6:$AC$10,10,FALSE) -> 14 | H20: =VLOOKUP($A20,Voorrondes!$O$6:$AC$10,11,FALSE) -> 3.99509 | I20: =VLOOKUP($A20,Voorrondes!$O$6:$AC$10,12,FALSE) -> 1 | J20: =VLOOKUP($A20,Voorrondes!$O$6:$AC$10,13,FALSE) -> 1 | K20: =VLOOKUP($A20,Voorrondes!$O$6:$AC$10,14,FALSE) -> 2 | L20: =VLOOKUP($A20,Voorrondes!$O$6:$AC$10,15,FALSE) -> -5

Sheet VGROEP-3
A1: Groep 3 Voorronde | M1: SCORES BY: OnlineExcelCursus.NL
A2: =Voorrondes!D24 -> Tijd | B2: =Voorrondes!E24 -> 0 | C2: =Voorrondes!G24 -> VELD 3 | F2: =Voorrondes!U24 -> Uitslag | G2: =Voorrondes!V24 -> 0 | H2: =Voorrondes!W24 -> 0 | J2: =Voorrondes!Y24 -> Punten
A3: =Voorrondes!D25 -> 09:00:00 | B3: =Voorrondes!E25 -> 00:00:00 | C3: =Voorrondes!G25 -> PC TEAM 1 | D3: =Voorrondes!M25 -> -- | E3: =Voorrondes!N25 -> PC TEAM 2 | F3: =Voorrondes!U25 -> 9 | G3: =Voorrondes!V25 -> -- | H3: =Voorrondes!W25 -> 2 | J3: =Voorrondes!Y25 -> 3 | L3: =Voorrondes!AA25 -> 0
A4: =Voorrondes!D26 -> 09:20:00 | B4: =Voorrondes!E26 -> 00:00:00 | C4: =Voorrondes!G26 -> PC TEAM 3 | D4: =Voorrondes!M26 -> -- | E4: =Voorrondes!N26 -> PC TEAM 4 | F4: =Voorrondes!U26 -> 8 | G4: =Voorrondes!V26 -> -- | H4: =Voorrondes!W26 -> 4 | J4: =Voorrondes!Y26 -> 3 | L4: =Voorrondes!AA26 -> 0
A5: =Voorrondes!D27 -> 09:40:00 | B5: =Voorrondes!E27 -> 00:00:00 | C5: =Voorrondes!G27 -> PC TEAM 5 | D5: =Voorrondes!M27 -> -- | E5: =Voorrondes!N27 -> PC TEAM 1 | F5: =Voorrondes!U27 -> 7 | G5: =Voorrondes!V27 -> -- | H5: =Voorrondes!W27 -> 5 | J5: =Voorrondes!Y27 -> 3 | L5: =Voorrondes!AA27 -> 0
A6: =Voorrondes!D28 -> 10:00:00 | B6: =Voorrondes!E28 -> 00:00:00 | C6: =Voorrondes!G28 -> PC TEAM 2 | D6: =Voorrondes!M28 -> -- | E6: =Voorrondes!N28 -> PC TEAM 3 | F6: =Voorrondes!U28 -> 4 | G6: =Voorrondes!V28 -> -- | H6: =Voorrondes!W28 -> 1 | J6: =Voorrondes!Y28 -> 3 | L6: =Voorrondes!AA28 -> 0
A7: =Voorrondes!D29 -> 10:20:00 | B7: =Voorrondes!E29 -> 00:00:00 | C7: =Voorrondes!G29 -> PC TEAM 5 | D7: =Voorrondes!M29 -> -- | E7: =Voorrondes!N29 -> PC TEAM 4 | F7: =Voorrondes!U29 -> 5 | G7: =Voorrondes!V29 -> -- | H7: =Voorrondes!W29 -> 0 | J7: =Voorrondes!Y29 -> 3 | L7: =Voorrondes!AA29 -> 0
A8: =Voorrondes!D30 -> 10:40:00 | B8: =Voorrondes!E30 -> 00:00:00 | C8: =Voorrondes!G30 -> PC TEAM 1 | D8: =Voorrondes!M30 -> -- | E8: =Voorrondes!N30 -> PC TEAM 3 | F8: =Voorrondes!U30 -> 6 | G8: =Voorrondes!V30 -> -- | H8: =Voorrondes!W30 -> 8 | J8: =Voorrondes!Y30 -> 0 | L8: =Voorrondes!AA30 -> 3
A9: =Voorrondes!D31 -> 11:00:00 | B9: =Voorrondes!E31 -> 00:00:00 | C9: =Voorrondes!G31 -> PC TEAM 2 | D9: =Voorrondes!M31 -> -- | E9: =Voorrondes!N31 -> PC TEAM 5 | F9: =Voorrondes!U31 -> 1 | G9: =Voorrondes!V31 -> -- | H9: =Voorrondes!W31 -> 5 | J9: =Voorrondes!Y31 -> 0 | L9: =Voorrondes!AA31 -> 3
A10: =Voorrondes!D32 -> 11:20:00 | B10: =Voorrondes!E32 -> 00:00:00 | C10: =Voorrondes!G32 -> PC TEAM 4 | D10: =Voorrondes!M32 -> -- | E10: =Voorrondes!N32 -> PC TEAM 1 | F10: =Voorrondes!U32 -> 2 | G10: =Voorrondes!V32 -> -- | H10: =Voorrondes!W32 -> 4 | J10: =Voorrondes!Y32 -> 0 | L10: =Voorrondes!AA32 -> 3
A11: =Voorrondes!D33 -> 11:40:00 | B11: =Voorrondes!E33 -> 00:00:00 | C11: =Voorrondes!G33 -> PC TEAM 3 | D11: =Voorrondes!M33 -> -- | E11: =Voorrondes!N33 -> PC TEAM 5 | F11: =Voorrondes!U33 -> 0 | G11: =Voorrondes!V33 -> -- | H11: =Voorrondes!W33 -> 3 | J11: =Voorrondes!Y33 -> 0 | L11: =Voorrondes!AA33 -> 3
A12: =Voorrondes!D34 -> 12:00:00 | B12: =Voorrondes!E34 -> 00:00:00 | C12: =Voorrondes!G34 -> PC TEAM 4 | D12: =Voorrondes!M34 -> -- | E12: =Voorrondes!N34 -> PC TEAM 2 | F12: =Voorrondes!U34 -> 1 | G12: =Voorrondes!V34 -> -- | H12: =Voorrondes!W34 -> 2 | J12: =Voorrondes!Y34 -> 0 | L12: =Voorrondes!AA34 -> 3
A15: =Voorrondes!AD3 -> Stand | B15: =Voorrondes!AE5 -> Poule C | F15: Voor | G15: Tegen | H15: Punten | I15: =Voorrondes!AN3 -> Gewonnen | J15: =Voorrondes!AO3 -> Gelijk | K15: =Voorrondes!AP3 -> Verloren | L15: =Voorrondes!AQ3 -> Saldo
A16: 1 | B16: =VLOOKUP(A16,Voorrondes!$AD$6:$AQ$10,2,FALSE) -> PC TEAM 5 | F16: =VLOOKUP($A16,Voorrondes!$AD$6:$AQ$10,8,FALSE) -> 20 | G16: =VLOOKUP($A16,Voorrondes!$AD$6:$AQ$10,9,FALSE) -> 6 | H16: =VLOOKUP($A16,Voorrondes!$AD$6:$AQ$10,10,FALSE) -> 12.0142 | I16: =VLOOKUP($A16,Voorrondes!$AD$6:$AQ$10,11,FALSE) -> 4 | J16: =VLOOKUP($A16,Voorrondes!$AD$6:$AQ$10,12,FALSE) -> 0 | K16: =VLOOKUP($A16,Voorrondes!$AD$6:$AQ$10,13,FALSE) -> 0 | L16: =VLOOKUP($A16,Voorrondes!$AD$6:$AQ$10,14,FALSE) -> 14
A17: 2 | B17: =VLOOKUP(A17,Voorrondes!$AD$6:$AQ$10,2,FALSE) -> PC TEAM 1 | F17: =VLOOKUP($A17,Voorrondes!$AD$6:$AQ$10,8,FALSE) -> 24 | G17: =VLOOKUP($A17,Voorrondes!$AD$6:$AQ$10,9,FALSE) -> 19 | H17: =VLOOKUP($A17,Voorrondes!$AD$6:$AQ$10,10,FALSE) -> 6.00524 | I17: =VLOOKUP($A17,Voorrondes!$AD$6:$AQ$10,11,FALSE) -> 2 | J17: =VLOOKUP($A17,Voorrondes!$AD$6:$AQ$10,12,FALSE) -> 0 | K17: =VLOOKUP($A17,Voorrondes!$AD$6:$AQ$10,13,FALSE) -> 2 | L17: =VLOOKUP($A17,Voorrondes!$AD$6:$AQ$10,14,FALSE) -> 5
A18: 3 | B18: =VLOOKUP(A18,Voorrondes!$AD$6:$AQ$10,2,FALSE) -> PC TEAM 3 | F18: =VLOOKUP($A18,Voorrondes!$AD$6:$AQ$10,8,FALSE) -> 17 | G18: =VLOOKUP($A18,Voorrondes!$AD$6:$AQ$10,9,FALSE) -> 17 | H18: =VLOOKUP($A18,Voorrondes!$AD$6:$AQ$10,10,FALSE) -> 6.00017 | I18: =VLOOKUP($A18,Voorrondes!$AD$6:$AQ$10,11,FALSE) -> 2 | J18: =VLOOKUP($A18,Voorrondes!$AD$6:$AQ$10,12,FALSE) -> 0 | K18: =VLOOKUP($A18,Voorrondes!$AD$6:$AQ$10,13,FALSE) -> 2 | L18: =VLOOKUP($A18,Voorrondes!$AD$6:$AQ$10,14,FALSE) -> 0
A19: 4 | B19: =VLOOKUP(A19,Voorrondes!$AD$6:$AQ$10,2,FALSE) -> PC TEAM 2 | F19: =VLOOKUP($A19,Voorrondes!$AD$6:$AQ$10,8,FALSE) -> 9 | G19: =VLOOKUP($A19,Voorrondes!$AD$6:$AQ$10,9,FALSE) -> 16 | H19: =VLOOKUP($A19,Voorrondes!$AD$6:$AQ$10,10,FALSE) -> 5.99309 | I19: =VLOOKUP($A19,Voorrondes!$AD$6:$AQ$10,11,FALSE) -> 2 | J19: =VLOOKUP($A19,Voorrondes!$AD$6:$AQ$10,12,FALSE) -> 0 | K19: =VLOOKUP($A19,Voorrondes!$AD$6:$AQ$10,13,FALSE) -> 2 | L19: =VLOOKUP($A19,Voorrondes!$AD$6:$AQ$10,14,FALSE) -> -7
A20: 5 | B20: =VLOOKUP(A20,Voorrondes!$AD$6:$AQ$10,2,FALSE) -> PC TEAM 4 | F20: =VLOOKUP($A20,Voorrondes!$AD$6:$AQ$10,8,FALSE) -> 7 | G20: =VLOOKUP($A20,Voorrondes!$AD$6:$AQ$10,9,FALSE) -> 19 | H20: =VLOOKUP($A20,Voorrondes!$AD$6:$AQ$10,10,FALSE) -> -0.01193 | I20: =VLOOKUP($A20,Voorrondes!$AD$6:$AQ$10,11,FALSE) -> 0 | J20: =VLOOKUP($A20,Voorrondes!$AD$6:$AQ$10,12,FALSE) -> 0 | K20: =VLOOKUP($A20,Voorrondes!$AD$6:$AQ$10,13,FALSE) -> 4 | L20: =VLOOKUP($A20,Voorrondes!$AD$6:$AQ$10,14,FALSE) -> -12

Sheet VGROEP-4
A1: Groep 4 Voorronde | M1: SCORES BY: OnlineExcelCursus.NL
A2: Tijd | B2: 0 | C2: VELD 4 | F2: Uitslag | G2: 0 | H2: 0 | J2: Punten | K2: 0 | L2: 0
A3: =Voorrondes!AC25 -> 09:00:00 | B3: 00:00:00 | C3: =Voorrondes!AF25 -> PD TEAM 1 | D3: =Voorrondes!AL25 -> -- | E3: =Voorrondes!AM25 -> PD TEAM 2 | F3: =Voorrondes!AT25 -> 1 | G3: =Voorrondes!AU25 -> -- | H3: =Voorrondes!AV25 -> 1 | J3: =Voorrondes!AX25 -> 1 | L3: =Voorrondes!AZ25 -> 1
A4: =Voorrondes!AC26 -> 09:20:00 | C4: =Voorrondes!AF26 -> PD TEAM 3 | D4: =Voorrondes!AL26 -> -- | E4: =Voorrondes!AM26 -> PD TEAM 4 | F4: =Voorrondes!AT26 -> 1 | G4: =Voorrondes!AU26 -> -- | H4: =Voorrondes!AV26 -> 0 | J4: =Voorrondes!AX26 -> 3 | L4: =Voorrondes!AZ26 -> 0
A5: =Voorrondes!AC27 -> 09:40:00 | C5: =Voorrondes!AF27 -> PD TEAM 5 | D5: =Voorrondes!AL27 -> -- | E5: =Voorrondes!AM27 -> PD TEAM 1 | F5: =Voorrondes!AT27 -> 1 | G5: =Voorrondes!AU27 -> -- | H5: =Voorrondes!AV27 -> 1 | J5: =Voorrondes!AX27 -> 1 | L5: =Voorrondes!AZ27 -> 1
A6: =Voorrondes!AC28 -> 10:00:00 | C6: =Voorrondes!AF28 -> PD TEAM 2 | D6: =Voorrondes!AL28 -> -- | E6: =Voorrondes!AM28 -> PD TEAM 3 | F6: =Voorrondes!AT28 -> 1 | G6: =Voorrondes!AU28 -> -- | H6: =Voorrondes!AV28 -> 2 | J6: =Voorrondes!AX28 -> 0 | L6: =Voorrondes!AZ28 -> 3
A7: =Voorrondes!AC29 -> 10:20:00 | C7: =Voorrondes!AF29 -> PD TEAM 5 | D7: =Voorrondes!AL29 -> -- | E7: =Voorrondes!AM29 -> PD TEAM 4 | F7: =Voorrondes!AT29 -> 2 | G7: =Voorrondes!AU29 -> -- | H7: =Voorrondes!AV29 -> 2 | J7: =Voorrondes!AX29 -> 1 | L7: =Voorrondes!AZ29 -> 1
A8: =Voorrondes!AC30 -> 10:40:00 | C8: =Voorrondes!AF30 -> PD TEAM 1 | D8: =Voorrondes!AL30 -> -- | E8: =Voorrondes!AM30 -> PD TEAM 3 | F8: =Voorrondes!AT30 -> 2 | G8: =Voorrondes!AU30 -> -- | H8: =Voorrondes!AV30 -> 5 | J8: =Voorrondes!AX30 -> 0 | L8: =Voorrondes!AZ30 -> 3
A9: =Voorrondes!AC31 -> 11:00:00 | C9: =Voorrondes!AF31 -> PD TEAM 2 | D9: =Voorrondes!AL31 -> -- | E9: =Voorrondes!AM31 -> PD TEAM 5 | F9: =Voorrondes!AT31 -> 3 | G9: =Voorrondes!AU31 -> -- | H9: =Voorrondes!AV31 -> 5 | J9: =Voorrondes!AX31 -> 0 | L9: =Voorrondes!AZ31 -> 3
A10: =Voorrondes!AC32 -> 11:20:00 | C10: =Voorrondes!AF32 -> PD TEAM 4 | D10: =Voorrondes!AL32 -> -- | E10: =Voorrondes!AM32 -> PD TEAM 1 | F10: =Voorrondes!AT32 -> 3 | G10: =Voorrondes!AU32 -> -- | H10: =Voorrondes!AV32 -> 3 | J10: =Voorrondes!AX32 -> 1 | L10: =Voorrondes!AZ32 -> 1
A11: =Voorrondes!AC33 -> 11:40:00 | C11: =Voorrondes!AF33 -> PD TEAM 3 | D11: =Voorrondes!AL33 -> -- | E11: =Voorrondes!AM33 -> PD TEAM 5 | F11: =Voorrondes!AT33 -> 3 | G11: =Voorrondes!AU33 -> -- | H11: =Voorrondes!AV33 -> 3 | J11: =Voorrondes!AX33 -> 1 | L11: =Voorrondes!AZ33 -> 1
A12: =Voorrondes!AC34 -> 12:00:00 | C12: =Voorrondes!AF34 -> PD TEAM 4 | D12: =Voorrondes!AL34 -> -- | E12: =Voorrondes!AM34 -> PD TEAM 2 | F12: =Voorrondes!AT34 -> 5 | G12: =Voorrondes!AU34 -> -- | H12: =Voorrondes!AV34 -> 3 | J12: =Voorrondes!AX34 -> 3 | L12: =Voorrondes!AZ34 -> 0
A15: Stand | B15: Poule D | F15: Voor | G15: Tegen | H15: Punten | I15: Gewonnen | J15: Gelijk | K15: Verloren | L15: Saldo
A16: 1 | B16: =VLOOKUP(A16,Voorrondes!$AR$6:$BE$10,2,FALSE) -> PD TEAM 3 | F16: =VLOOKUP($A16,Voorrondes!$AR$6:$BE$10,8,FALSE) -> 11 | G16: =VLOOKUP($A16,Voorrondes!$AR$6:$BE$10,9,FALSE) -> 6 | H16: =VLOOKUP($A16,Voorrondes!$AR$6:$BE$10,10,FALSE) -> 10.00511 | I16: =VLOOKUP($A16,Voorrondes!$AR$6:$BE$10,11,FALSE) -> 3 | J16: =VLOOKUP($A16,Voorrondes!$AR$6:$BE$10,12,FALSE) -> 1 | K16: =VLOOKUP($A16,Voorrondes!$AR$6:$BE$10,13,FALSE) -> 0 | L16: =VLOOKUP($A16,Voorrondes!$AR$6:$BE$10,14,FALSE) -> 5
A17: 2 | B17: =VLOOKUP(A17,Voorrondes!$AR$6:$BE$10,2,FALSE) -> PD TEAM 5 | F17: =VLOOKUP($A17,Voorrondes!$AR$6:$BE$10,8,FALSE) -> 11 | G17: =VLOOKUP($A17,Voorrondes!$AR$6:$BE$10,9,FALSE) -> 9 | H17: =VLOOKUP($A17,Voorrondes!$AR$6:$BE$10,10,FALSE) -> 6.00211 | I17: =VLOOKUP($A17,Voorrondes!$AR$6:$BE$10,11,FALSE) -> 1 | J17: =VLOOKUP($A17,Voorrondes!$AR$6:$BE$10,12,FALSE) -> 3 | K17: =VLOOKUP($A17,Voorrondes!$AR$6:$BE$10,13,FALSE) -> 0 | L17: =VLOOKUP($A17,Voorrondes!$AR$6:$BE$10,14,FALSE) -> 2
A18: 3 | B18: =VLOOKUP(A18,Voorrondes!$AR$6:$BE$10,2,FALSE) -> PD TEAM 4 | F18: =VLOOKUP($A18,Voorrondes!$AR$6:$BE$10,8,FALSE) -> 10 | G18: =VLOOKUP($A18,Voorrondes!$AR$6:$BE$10,9,FALSE) -> 9 | H18: =VLOOKUP($A18,Voorrondes!$AR$6:$BE$10,10,FALSE) -> 5.0011 | I18: =VLOOKUP($A18,Voorrondes!$AR$6:$BE$10,11,FALSE) -> 1 | J18: =VLOOKUP($A18,Voorrondes!$AR$6:$BE$10,12,FALSE) -> 2 | K18: =VLOOKUP($A18,Voorrondes!$AR$6:$BE$10,13,FALSE) -> 1 | L18: =VLOOKUP($A18,Voorrondes!$AR$6:$BE$10,14,FALSE) -> 1
A19: 4 | B19: =VLOOKUP(A19,Voorrondes!$AR$6:$BE$10,2,FALSE) -> PD TEAM 1 | F19: =VLOOKUP($A19,Voorrondes!$AR$6:$BE$10,8,FALSE) -> 7 | G19: =VLOOKUP($A19,Voorrondes!$AR$6:$BE$10,9,FALSE) -> 10 | H19: =VLOOKUP($A19,Voorrondes!$AR$6:$BE$10,10,FALSE) -> 2.99707 | I19: =VLOOKUP($A19,Voorrondes!$AR$6:$BE$10,11,FALSE) -> 0 | J19: =VLOOKUP($A19,Voorrondes!$AR$6:$BE$10,12,FALSE) -> 3 | K19: =VLOOKUP($A19,Voorrondes!$AR$6:$BE$10,13,FALSE) -> 1 | L19: =VLOOKUP($A19,Voorrondes!$AR$6:$BE$10,14,FALSE) -> -3
A20: 5 | B20: =VLOOKUP(A20,Voorrondes!$AR$6:$BE$10,2,FALSE) -> PD TEAM 2 | F20: =VLOOKUP($A20,Voorrondes!$AR$6:$BE$10,8,FALSE) -> 8 | G20: =VLOOKUP($A20,Voorrondes!$AR$6:$BE$10,9,FALSE) -> 13 | H20: =VLOOKUP($A20,Voorrondes!$AR$6:$BE$10,10,FALSE) -> 0.99508 | I20: =VLOOKUP($A20,Voorrondes!$AR$6:$BE$10,11,FALSE) -> 0 | J20: =VLOOKUP($A20,Voorrondes!$AR$6:$BE$10,12,FALSE) -> 1 | K20: =VLOOKUP($A20,Voorrondes!$AR$6:$BE$10,13,FALSE) -> 3 | L20: =VLOOKUP($A20,Voorrondes!$AR$6:$BE$10,14,FALSE) -> -5

Sheet VGROEP-5
A1: Groep 5 Voorronde | M1: SCORES BY: OnlineExcelCursus.NL
A2: =Voorrondes!AC24 -> Tijd | B2: =Voorrondes!AD24 -> 0 | C2: =Voorrondes!AF24 -> VELD 4 | F2: =Voorrondes!AT24 -> Uitslag | G2: =Voorrondes!AU24 -> 0 | H2: =Voorrondes!AV24 -> 0 | J2: =Voorrondes!AX24 -> Punten | K2: =Voorrondes!AY24 -> 0 | L2: =Voorrondes!AZ24 -> 0
A3: =Voorrondes!D38 -> 09:00:00 | B3: =Voorrondes!AD25 -> 00:00:00 | C3: =Voorrondes!G38 -> PE TEAM 1 | D3: =Voorrondes!AL25 -> -- | E3: =Voorrondes!N38 -> PE TEAM 2 | F3: =Voorrondes!U38 -> 2 | G3: =Voorrondes!AU25 -> -- | H3: =Voorrondes!W38 -> 3 | J3: =Voorrondes!Y38 -> 0 | L3: =Voorrondes!AA38 -> 3
A4: =Voorrondes!D39 -> 09:20:00 | B4: =Voorrondes!AD26 -> 00:00:00 | C4: =Voorrondes!G39 -> PE TEAM 3 | D4: =Voorrondes!AL26 -> -- | E4: =Voorrondes!N39 -> PE TEAM 4 | F4: =Voorrondes!U39 -> 3 | G4: =Voorrondes!AU26 -> -- | H4: =Voorrondes!W39 -> 5 | J4: =Voorrondes!Y39 -> 0 | L4: =Voorrondes!AA39 -> 3
A5: =Voorrondes!D40 -> 09:40:00 | B5: =Voorrondes!AD27 -> 00:00:00 | C5: =Voorrondes!G40 -> PE TEAM 5 | D5: =Voorrondes!AL27 -> -- | E5: =Voorrondes!N40 -> PE TEAM 1 | F5: =Voorrondes!U40 -> 6 | G5: =Voorrondes!AU27 -> -- | H5: =Voorrondes!W40 -> 5 | J5: =Voorrondes!Y40 -> 3 | L5: =Voorrondes!AA40 -> 0
A6: =Voorrondes!D41 -> 10:00:00 | B6: =Voorrondes!AD28 -> 00:00:00 | C6: =Voorrondes!G41 -> PE TEAM 2 | D6: =Voorrondes!AL28 -> -- | E6: =Voorrondes!N41 -> PE TEAM 3 | F6: =Voorrondes!U41 -> 0 | G6: =Voorrondes!AU28 -> -- | H6: =Voorrondes!W41 -> 2 | J6: =Voorrondes!Y41 -> 0 | L6: =Voorrondes!AA41 -> 3
A7: =Voorrondes!D42 -> 10:20:00 | B7: =Voorrondes!AD29 -> 00:00:00 | C7: =Voorrondes!G42 -> PE TEAM 5 | D7: =Voorrondes!AL29 -> -- | E7: =Voorrondes!N42 -> PE TEAM 4 | F7: =Voorrondes!U42 -> 1 | G7: =Voorrondes!AU29 -> -- | H7: =Voorrondes!W42 -> 1 | J7: =Voorrondes!Y42 -> 1 | L7: =Voorrondes!AA42 -> 1
A8: =Voorrondes!D43 -> 10:40:00 | B8: =Voorrondes!AD30 -> 00:00:00 | C8: =Voorrondes!G43 -> PE TEAM 1 | D8: =Voorrondes!AL30 -> -- | E8: =Voorrondes!N43 -> PE TEAM 3 | F8: =Voorrondes!U43 -> 2 | G8: =Voorrondes!AU30 -> -- | H8: =Voorrondes!W43 -> 1 | J8: =Voorrondes!Y43 -> 3 | L8: =Voorrondes!AA43 -> 0
A9: =Voorrondes!D44 -> 11:00:00 | B9: =Voorrondes!AD31 -> 00:00:00 | C9: =Voorrondes!G44 -> PE TEAM 2 | D9: =Voorrondes!AL31 -> -- | E9: =Voorrondes!N44 -> PE TEAM 5 | F9: =Voorrondes!U44 -> 4 | G9: =Voorrondes!AU31 -> -- | H9: =Voorrondes!W44 -> 4 | J9: =Voorrondes!Y44 -> 1 | L9: =Voorrondes!AA44 -> 1
A10: =Voorrondes!D45 -> 11:20:00 | B10: =Voorrondes!AD32 -> 00:00:00 | C10: =Voorrondes!G45 -> PE TEAM 4 | D10: =Voorrondes!AL32 -> -- | E10: =Voorrondes!N45 -> PE TEAM 1 | F10: =Voorrondes!U45 -> 5 | G10: =Voorrondes!AU32 -> -- | H10: =Voorrondes!W45 -> 3 | J10: =Voorrondes!Y45 -> 3 | L10: =Voorrondes!AA45 -> 0
A11: =Voorrondes!D46 -> 11:40:00 | B11: =Voorrondes!AD33 -> 00:00:00 | C11: =Voorrondes!G46 -> PE TEAM 3 | D11: =Voorrondes!AL33 -> -- | E11: =Voorrondes!N46 -> PE TEAM 5 | F11: =Voorrondes!U46 -> 3 | G11: =Voorrondes!AU33 -> -- | H11: =Voorrondes!W46 -> 2 | J11: =Voorrondes!Y46 -> 3 | L11: =Voorrondes!AA46 -> 0
A12: =Voorrondes!D47 -> 12:00:00 | B12: =Voorrondes!AD34 -> 00:00:00 | C12: =Voorrondes!G47 -> PE TEAM 4 | D12: =Voorrondes!AL34 -> -- | E12: =Voorrondes!N47 -> PE TEAM 2 | F12: =Voorrondes!U47 -> 0 | G12: =Voorrondes!AU34 -> -- | H12: =Voorrondes!W47 -> 0 | J12: =Voorrondes!Y47 -> 1 | L12: =Voorrondes!AA47 -> 1
A15: =Voorrondes!AR3 -> Stand | B15: =Voorrondes!BG5 -> Poule E | F15: Voor | G15: Tegen | H15: Punten | I15: =Voorrondes!BB3 -> Gewonnen | J15: =Voorrondes!BC3 -> Gelijk | K15: =Voorrondes!BD3 -> Verloren | L15: =Voorrondes!BE3 -> Saldo
A16: 1 | B16: =VLOOKUP(A16,Voorrondes!$BF$6:$BS$10,2,FALSE) -> PE TEAM 4 | F16: =VLOOKUP($A16,Voorrondes!$BF$6:$BS$10,8,FALSE) -> 11 | G16: =VLOOKUP($A16,Voorrondes!$BF$6:$BS$10,9,FALSE) -> 7 | H16: =VLOOKUP($A16,Voorrondes!$BF$6:$BS$10,10,FALSE) -> 8.00411 | I16: =VLOOKUP($A16,Voorrondes!$BF$6:$BS$10,11,FALSE) -> 2 | J16: =VLOOKUP($A16,Voorrondes!$BF$6:$BS$10,12,FALSE) -> 2 | K16: =VLOOKUP($A16,Voorrondes!$BF$6:$BS$10,13,FALSE) -> 0 | L16: =VLOOKUP($A16,Voorrondes!$BF$6:$BS$10,14,FALSE) -> 4
A17: 2 | B17: =VLOOKUP(A17,Voorrondes!$BF$6:$BS$10,2,FALSE) -> PE TEAM 3 | F17: =VLOOKUP($A17,Voorrondes!$BF$6:$BS$10,8,FALSE) -> 9 | G17: =VLOOKUP($A17,Voorrondes!$BF$6:$BS$10,9,FALSE) -> 9 | H17: =VLOOKUP($A17,Voorrondes!$BF$6:$BS$10,10,FALSE) -> 6.00009 | I17: =VLOOKUP($A17,Voorrondes!$BF$6:$BS$10,11,FALSE) -> 2 | J17: =VLOOKUP($A17,Voorrondes!$BF$6:$BS$10,12,FALSE) -> 0 | K17: =VLOOKUP($A17,Voorrondes!$BF$6:$BS$10,13,FALSE) -> 2 | L17: =VLOOKUP($A17,Voorrondes!$BF$6:$BS$10,14,FALSE) -> 0
A18: 3 | B18: =VLOOKUP(A18,Voorrondes!$BF$6:$BS$10,2,FALSE) -> PE TEAM 5 | F18: =VLOOKUP($A18,Voorrondes!$BF$6:$BS$10,8,FALSE) -> 13 | G18: =VLOOKUP($A18,Voorrondes!$BF$6:$BS$10,9,FALSE) -> 13 | H18: =VLOOKUP($A18,Voorrondes!$BF$6:$BS$10,10,FALSE) -> 5.00013 | I18: =VLOOKUP($A18,Voorrondes!$BF$6:$BS$10,11,FALSE) -> 1 | J18: =VLOOKUP($A18,Voorrondes!$BF$6:$BS$10,12,FALSE) -> 2 | K18: =VLOOKUP($A18,Voorrondes!$BF$6:$BS$10,13,FALSE) -> 1 | L18: =VLOOKUP($A18,Voorrondes!$BF$6:$BS$10,14,FALSE) -> 0
A19: 4 | B19: =VLOOKUP(A19,Voorrondes!$BF$6:$BS$10,2,FALSE) -> PE TEAM 2 | F19: =VLOOKUP($A19,Voorrondes!$BF$6:$BS$10,8,FALSE) -> 7 | G19: =VLOOKUP($A19,Voorrondes!$BF$6:$BS$10,9,FALSE) -> 8 | H19: =VLOOKUP($A19,Voorrondes!$BF$6:$BS$10,10,FALSE) -> 4.99907 | I19: =VLOOKUP($A19,Voorrondes!$BF$6:$BS$10,11,FALSE) -> 1 | J19: =VLOOKUP($A19,Voorrondes!$BF$6:$BS$10,12,FALSE) -> 2 | K19: =VLOOKUP($A19,Voorrondes!$BF$6:$BS$10,13,FALSE) -> 1 | L19: =VLOOKUP($A19,Voorrondes!$BF$6:$BS$10,14,FALSE) -> -1
A20: 5 | B20: =VLOOKUP(A20,Voorrondes!$BF$6:$BS$10,2,FALSE) -> PE TEAM 1 | F20: =VLOOKUP($A20,Voorrondes!$BF$6:$BS$10,8,FALSE) -> 12 | G20: =VLOOKUP($A20,Voorrondes!$BF$6:$BS$10,9,FALSE) -> 15 | H20: =VLOOKUP($A20,Voorrondes!$BF$6:$BS$10,10,FALSE) -> 2.99712 | I20: =VLOOKUP($A20,Voorrondes!$BF$6:$BS$10,11,FALSE) -> 1 | J20: =VLOOKUP($A20,Voorrondes!$BF$6:$BS$10,12,FALSE) -> 0 | K20: =VLOOKUP($A20,Voorrondes!$BF$6:$BS$10,13,FALSE) -> 3 | L20: =VLOOKUP($A20,Voorrondes!$BF$6:$BS$10,14,FALSE) -> -3

Sheet FGROEP-1
A1: Finale ronde Beste nummers 1 | M1: SCORES BY: OnlineExcelCursus.NL
A2: =Finales!D12 -> Tijd | B2: =Voorrondes!E12 -> 0 | C2: =Finales!G12 -> VELD 1 | J2: =Finales!Y12 -> Punten
A3: =Finales!D13 -> 09:00:00 | B3: =Voorrondes!E13 -> 00:00:00 | C3: =Finales!G13 -> PA TEAM 4 | D3: =Finales!M13 -> -- | E3: =Finales!N13 -> PB TEAM 2 | F3: =Finales!U13 -> 0 | G3: =Finales!V13 -> -- | H3: =Finales!W13 -> 0 | J3: =Finales!Y13 ->  | L3: =Finales!AA13 -> 
A4: =Finales!D14 -> 09:20:00 | B4: =Voorrondes!E14 -> 00:00:00 | C4: =Finales!G14 -> PC TEAM 5 | D4: =Finales!M14 -> -- | E4: =Finales!N14 -> PD TEAM 3 | F4: =Finales!U14 -> 0 | G4: =Finales!V14 -> -- | H4: =Finales!W14 -> 0 | J4: =Finales!Y14 ->  | L4: =Finales!AA14 -> 
A5: =Finales!D15 -> 09:40:00 | B5: =Voorrondes!E15 -> 00:00:00 | C5: =Finales!G15 -> PE TEAM 4 | D5: =Finales!M15 -> -- | E5: =Finales!N15 -> PA TEAM 4 | F5: =Finales!U15 -> 0 | G5: =Finales!V15 -> -- | H5: =Finales!W15 -> 0 | J5: =Finales!Y15 ->  | L5: =Finales!AA15 -> 
A6: =Finales!D16 -> 10:00:00 | B6: =Voorrondes!E16 -> 00:00:00 | C6: =Finales!G16 -> PB TEAM 2 | D6: =Finales!M16 -> -- | E6: =Finales!N16 -> PC TEAM 5 | F6: =Finales!U16 -> 0 | G6: =Finales!V16 -> -- | H6: =Finales!W16 -> 0 | J6: =Finales!Y16 ->  | L6: =Finales!AA16 -> 
A7: =Finales!D17 -> 10:20:00 | B7: =Voorrondes!E17 -> 00:00:00 | C7: =Finales!G17 -> PE TEAM 4 | D7: =Finales!M17 -> -- | E7: =Finales!N17 -> PD TEAM 3 | F7: =Finales!U17 -> 0 | G7: =Finales!V17 -> -- | H7: =Finales!W17 -> 0 | J7: =Finales!Y17 ->  | L7: =Finales!AA17 -> 
A8: =Finales!D18 -> 10:40:00 | B8: =Voorrondes!E18 -> 00:00:00 | C8: =Finales!G18 -> PA TEAM 4 | D8: =Finales!M18 -> -- | E8: =Finales!N18 -> PC TEAM 5 | F8: =Finales!U18 -> 0 | G8: =Finales!V18 -> -- | H8: =Finales!W18 -> 0 | J8: =Finales!Y18 ->  | L8: =Finales!AA18 -> 
A9: =Finales!D19 -> 11:00:00 | B9: =Voorrondes!E19 -> 00:00:00 | C9: =Finales!G19 -> PB TEAM 2 | D9: =Finales!M19 -> -- | E9: =Finales!N19 -> PE TEAM 4 | F9: =Finales!U19 -> 0 | G9: =Finales!V19 -> -- | H9: =Finales!W19 -> 0 | J9: =Finales!Y19 ->  | L9: =Finales!AA19 -> 
A10: =Finales!D20 -> 11:20:00 | B10: =Voorrondes!E20 -> 00:00:00 | C10: =Finales!G20 -> PD TEAM 3 | D10: =Finales!M20 -> -- | E10: =Finales!N20 -> PA TEAM 4 | F10: =Finales!U20 -> 0 | G10: =Finales!V20 -> -- | H10: =Finales!W20 -> 0 | J10: =Finales!Y20 ->  | L10: =Finales!AA20 -> 
A11: =Finales!D21 -> 11:40:00 | B11: =Voorrondes!E21 -> 00:00:00 | C11: =Finales!G21 -> PC TEAM 5 | D11: =Finales!M21 -> -- | E11: =Finales!N21 -> PE TEAM 4 | F11: =Finales!U21 -> 0 | G11: =Finales!V21 -> -- | H11: =Finales!W21 -> 0 | J11: =Finales!Y21 ->  | L11: =Finales!AA21 -> 
A12: =Finales!D22 -> 12:00:00 | B12: =Voorrondes!E22 -> 00:00:00 | C12: =Finales!G22 -> PD TEAM 3 | D12: =Finales!M22 -> -- | E12: =Finales!N22 -> PB TEAM 2 | F12: =Finales!U22 -> 0 | G12: =Finales!V22 -> -- | H12: =Finales!W22 -> 0 | J12: =Finales!Y22 ->  | L12: =Finales!AA22 -> 
A15: =Finales!A3 -> Stand | B15: =Finales!B5 -> Poule A | F15: Voor | G15: Tegen | H15: Punten | I15: =Finales!K3 -> Gewonnen | J15: =Finales!L3 -> Gelijk | K15: =Finales!M3 -> Verloren | L15: =Finales!N3 -> Saldo
A16: 1 | B16: =VLOOKUP(A16,Finales!$A$6:$N$10,2,FALSE) -> PA TEAM 4 | F16: =VLOOKUP($A$16,Finales!$A$6:$N$10,8,FALSE) -> 0 | G16: =VLOOKUP($A$16,Finales!$A$6:$N$10,9,FALSE) -> 0 | H16: =VLOOKUP($A$16,Finales!$A$6:$N$10,10,FALSE) -> 0 | I16: =VLOOKUP($A$16,Finales!$A$6:$N$10,11,FALSE) -> 0 | J16: =VLOOKUP($A$16,Finales!$A$6:$N$10,12,FALSE) -> 0 | K16: =VLOOKUP($A$16,Finales!$A$6:$N$10,13,FALSE) -> 0 | L16: =VLOOKUP($A$16,Finales!$A$6:$N$10,14,FALSE) -> 0
A17: 2 | B17: =VLOOKUP(A17,Finales!$A$6:$N$10,2,FALSE) ->  | F17: =VLOOKUP($A$17,Finales!$A$6:$N$10,8,FALSE) ->  | G17: =VLOOKUP($A$17,Finales!$A$6:$N$10,9,FALSE) ->  | H17: =VLOOKUP($A$17,Finales!$A$6:$N$10,10,FALSE) ->  | I17: =VLOOKUP($A$17,Finales!$A$6:$N$10,11,FALSE) ->  | J17: =VLOOKUP($A$17,Finales!$A$6:$N$10,12,FALSE) ->  | K17: =VLOOKUP($A$17,Finales!$A$6:$N$10,13,FALSE) ->  | L17: =VLOOKUP($A$17,Finales!$A$6:$N$10,14,FALSE) -> 
A18: 3 | B18: =VLOOKUP(A18,Finales!$A$6:$N$10,2,FALSE) ->  | F18: =VLOOKUP($A$18,Finales!$A$6:$N$10,8,FALSE) ->  | G18: =VLOOKUP($A$18,Finales!$A$6:$N$10,9,FALSE) ->  | H18: =VLOOKUP($A$18,Finales!$A$6:$N$10,10,FALSE) ->  | I18: =VLOOKUP($A$18,Finales!$A$6:$N$10,11,FALSE) ->  | J18: =VLOOKUP($A$18,Finales!$A$6:$N$10,12,FALSE) ->  | K18: =VLOOKUP($A$18,Finales!$A$6:$N$10,13,FALSE) ->  | L18: =VLOOKUP($A$18,Finales!$A$6:$N$10,14,FALSE) -> 
A19: 4 | B19: =VLOOKUP(A19,Finales!$A$6:$N$10,2,FALSE) ->  | F19: =VLOOKUP($A$19,Finales!$A$6:$N$10,8,FALSE) ->  | G19: =VLOOKUP($A$19,Finales!$A$6:$N$10,9,FALSE) ->  | H19: =VLOOKUP($A$19,Finales!$A$6:$N$10,10,FALSE) ->  | I19: =VLOOKUP($A$19,Finales!$A$6:$N$10,11,FALSE) ->  | J19: =VLOOKUP($A$19,Finales!$A$6:$N$10,12,FALSE) ->  | K19: =VLOOKUP($A$19,Finales!$A$6:$N$10,13,FALSE) ->  | L19: =VLOOKUP($A$19,Finales!$A$6:$N$10,14,FALSE) -> 
A20: 5 | B20: =VLOOKUP(A20,Finales!$A$6:$N$10,2,FALSE) ->  | F20: =VLOOKUP($A$20,Finales!$A$6:$N$10,8,FALSE) ->  | G20: =VLOOKUP($A$20,Finales!$A$6:$N$10,9,FALSE) ->  | H20: =VLOOKUP($A$20,Finales!$A$6:$N$10,10,FALSE) ->  | I20: =VLOOKUP($A$20,Finales!$A$6:$N$10,11,FALSE) ->  | J20: =VLOOKUP($A$20,Finales!$A$6:$N$10,12,FALSE) ->  | K20: =VLOOKUP($A$20,Finales!$A$6:$N$10,13,FALSE) ->  | L20: =VLOOKUP($A$20,Finales!$A$6:$N$10,14,FALSE) -> 

Sheet FGROEP-2
A1: Finale ronde Beste nummers 2 | M1: SCORES BY: OnlineExcelCursus.NL
A2: =Finales!AC12 -> Tijd | C2: =Finales!AF12 -> VELD 2 | F2: =Finales!AT12 -> Uitslag | J2: =Finales!AX12 -> Punten
A3: =Finales!AC13 -> 09:00:00 | B3: =Voorrondes!AD13 -> 00:00:00 | C3: =Finales!AF13 -> PA TEAM 3 | D3: =Finales!AL13 -> -- | E3: =Finales!AM13 -> PB TEAM 4 | F3: =Finales!AT13 -> 0 | G3: =Finales!AU13 -> -- | H3: =Finales!AV13 -> 0 | J3: =Finales!AX13 ->  | L3: =Finales!AZ13 -> 
A4: =Finales!AC14 -> 09:20:00 | B4: =Voorrondes!AD14 -> 00:00:00 | C4: =Finales!AF14 -> PC TEAM 1 | D4: =Finales!AL14 -> -- | E4: =Finales!AM14 -> PD TEAM 5 | F4: =Finales!AT14 -> 0 | G4: =Finales!AU14 -> -- | H4: =Finales!AV14 -> 0 | J4: =Finales!AX14 ->  | L4: =Finales!AZ14 -> 
A5: =Finales!AC15 -> 09:40:00 | B5: =Voorrondes!AD15 -> 00:00:00 | C5: =Finales!AF15 -> PE TEAM 3 | D5: =Finales!AL15 -> -- | E5: =Finales!AM15 -> PA TEAM 3 | F5: =Finales!AT15 -> 0 | G5: =Finales!AU15 -> -- | H5: =Finales!AV15 -> 0 | J5: =Finales!AX15 ->  | L5: =Finales!AZ15 -> 
A6: =Finales!AC16 -> 10:00:00 | B6: =Voorrondes!AD16 -> 00:00:00 | C6: =Finales!AF16 -> PB TEAM 4 | D6: =Finales!AL16 -> -- | E6: =Finales!AM16 -> PC TEAM 1 | F6: =Finales!AT16 -> 0 | G6: =Finales!AU16 -> -- | H6: =Finales!AV16 -> 0 | J6: =Finales!AX16 ->  | L6: =Finales!AZ16 -> 
A7: =Finales!AC17 -> 10:20:00 | B7: =Voorrondes!AD17 -> 00:00:00 | C7: =Finales!AF17 -> PE TEAM 3 | D7: =Finales!AL17 -> -- | E7: =Finales!AM17 -> PD TEAM 5 | F7: =Finales!AT17 -> 0 | G7: =Finales!AU17 -> -- | H7: =Finales!AV17 -> 0 | J7: =Finales!AX17 ->  | L7: =Finales!AZ17 -> 
A8: =Finales!AC18 -> 10:40:00 | B8: =Voorrondes!AD18 -> 00:00:00 | C8: =Finales!AF18 -> PA TEAM 3 | D8: =Finales!AL18 -> -- | E8: =Finales!AM18 -> PC TEAM 1 | F8: =Finales!AT18 -> 0 | G8: =Finales!AU18 -> -- | H8: =Finales!AV18 -> 0 | J8: =Finales!AX18 ->  | L8: =Finales!AZ18 -> 
A9: =Finales!AC19 -> 11:00:00 | B9: =Voorrondes!AD19 -> 00:00:00 | C9: =Finales!AF19 -> PB TEAM 4 | D9: =Finales!AL19 -> -- | E9: =Finales!AM19 -> PE TEAM 3 | F9: =Finales!AT19 -> 0 | G9: =Finales!AU19 -> -- | H9: =Finales!AV19 -> 0 | J9: =Finales!AX19 ->  | L9: =Finales!AZ19 -> 
A10: =Finales!AC20 -> 11:20:00 | B10: =Voorrondes!AD20 -> 00:00:00 | C10: =Finales!AF20 -> PD TEAM 5 | D10: =Finales!AL20 -> -- | E10: =Finales!AM20 -> PA TEAM 3 | F10: =Finales!AT20 -> 0 | G10: =Finales!AU20 -> -- | H10: =Finales!AV20 -> 0 | J10: =Finales!AX20 ->  | L10: =Finales!AZ20 -> 
A11: =Finales!AC21 -> 11:40:00 | B11: =Voorrondes!AD21 -> 00:00:00 | C11: =Finales!AF21 -> PC TEAM 1 | D11: =Finales!AL21 -> -- | E11: =Finales!AM21 -> PE TEAM 3 | F11: =Finales!AT21 -> 0 | G11: =Finales!AU21 -> -- | H11: =Finales!AV21 -> 0 | J11: =Finales!AX21 ->  | L11: =Finales!AZ21 -> 
A12: =Finales!AC22 -> 12:00:00 | B12: =Voorrondes!AD22 -> 00:00:00 | C12: =Finales!AF22 -> PD TEAM 5 | D12: =Finales!AL22 -> -- | E12: =Finales!AM22 -> PB TEAM 4 | F12: =Finales!AT22 -> 0 | G12: =Finales!AU22 -> -- | H12: =Finales!AV22 -> 0 | J12: =Finales!AX22 ->  | L12: =Finales!AZ22 -> 
A15: Stand | B15: =Finales!P5 -> Poule B | F15: Voor | G15: Tegen | H15: Punten | I15: =Finales!Z3 -> Gewonnen | J15: =Finales!AA3 -> Gelijk | K15: =Finales!AB3 -> Verloren | L15: =Finales!AC3 -> Saldo
A16: 1 | B16: =VLOOKUP(A16,Finales!$O$6:$AC$10,2,FALSE) -> PA TEAM 3 | F16: =VLOOKUP($A16,Finales!$O$6:$AC$10,9,FALSE) -> 0 | G16: =VLOOKUP($A16,Finales!$O$6:$AC$10,10,FALSE) -> 0 | H16: =VLOOKUP($A16,Finales!$O$6:$AC$10,11,FALSE) -> 0 | I16: =VLOOKUP($A16,Finales!$O$6:$AC$10,12,FALSE) -> 0 | J16: =VLOOKUP($A16,Finales!$O$6:$AC$10,13,FALSE) -> 0 | K16: =VLOOKUP($A16,Finales!$O$6:$AC$10,14,FALSE) -> 0 | L16: =VLOOKUP($A16,Finales!$O$6:$AC$10,15,FALSE) -> 0
A17: 2 | B17: =VLOOKUP(A17,Finales!$O$6:$AC$10,2,FALSE) ->  | F17: =VLOOKUP($A17,Finales!$O$6:$AC$10,9,FALSE) ->  | G17: =VLOOKUP($A17,Finales!$O$6:$AC$10,10,FALSE) ->  | H17: =VLOOKUP($A17,Finales!$O$6:$AC$10,11,FALSE) ->  | I17: =VLOOKUP($A17,Finales!$O$6:$AC$10,12,FALSE) ->  | J17: =VLOOKUP($A17,Finales!$O$6:$AC$10,13,FALSE) ->  | K17: =VLOOKUP($A17,Finales!$O$6:$AC$10,14,FALSE) ->  | L17: =VLOOKUP($A17,Finales!$O$6:$AC$10,15,FALSE) -> 
A18: 3 | B18: =VLOOKUP(A18,Finales!$O$6:$AC$10,2,FALSE) ->  | F18: =VLOOKUP($A18,Finales!$O$6:$AC$10,9,FALSE) ->  | G18: =VLOOKUP($A18,Finales!$O$6:$AC$10,10,FALSE) ->  | H18: =VLOOKUP($A18,Finales!$O$6:$AC$10,11,FALSE) ->  | I18: =VLOOKUP($A18,Finales!$O$6:$AC$10,12,FALSE) ->  | J18: =VLOOKUP($A18,Finales!$O$6:$AC$10,13,FALSE) ->  | K18: =VLOOKUP($A18,Finales!$O$6:$AC$10,14,FALSE) ->  | L18: =VLOOKUP($A18,Finales!$O$6:$AC$10,15,FALSE) -> 
A19: 4 | B19: =VLOOKUP(A19,Finales!$O$6:$AC$10,2,FALSE) ->  | F19: =VLOOKUP($A19,Finales!$O$6:$AC$10,9,FALSE) ->  | G19: =VLOOKUP($A19,Finales!$O$6:$AC$10,10,FALSE) ->  | H19: =VLOOKUP($A19,Finales!$O$6:$AC$10,11,FALSE) ->  | I19: =VLOOKUP($A19,Finales!$O$6:$AC$10,12,FALSE) ->  | J19: =VLOOKUP($A19,Finales!$O$6:$AC$10,13,FALSE) ->  | K19: =VLOOKUP($A19,Finales!$O$6:$AC$10,14,FALSE) ->  | L19: =VLOOKUP($A19,Finales!$O$6:$AC$10,15,FALSE) -> 
A20: 5 | B20: =VLOOKUP(A20,Finales!$O$6:$AC$10,2,FALSE) ->  | F20: =VLOOKUP($A20,Finales!$O$6:$AC$10,9,FALSE) ->  | G20: =VLOOKUP($A20,Finales!$O$6:$AC$10,10,FALSE) ->  | H20: =VLOOKUP($A20,Finales!$O$6:$AC$10,11,FALSE) ->  | I20: =VLOOKUP($A20,Finales!$O$6:$AC$10,12,FALSE) ->  | J20: =VLOOKUP($A20,Finales!$O$6:$AC$10,13,FALSE) ->  | K20: =VLOOKUP($A20,Finales!$O$6:$AC$10,14,FALSE) ->  | L20: =VLOOKUP($A20,Finales!$O$6:$AC$10,15,FALSE) -> 

Sheet FGROEP-3
A1: Finale ronde Beste nummers 3 | M1: SCORES BY: OnlineExcelCursus.NL
A2: =Finales!D24 -> Tijd | B2: =Voorrondes!E24 -> 0 | C2: =Finales!G24 -> VELD 3 | F2: =Finales!U24 -> Uitslag | G2: =Voorrondes!V24 -> 0 | H2: =Voorrondes!W24 -> 0 | J2: =Finales!Y24 -> Punten
A3: =Finales!D25 -> 09:00:00 | B3: =Voorrondes!E25 -> 00:00:00 | C3: =Finales!G25 -> PA TEAM 1 | D3: =Finales!M25 -> -- | E3: =Finales!N25 -> PB TEAM 1 | F3: =Finales!U25 -> 0 | G3: =Finales!V25 -> -- | H3: =Finales!W25 -> 0 | J3: =Finales!Y25 ->  | L3: =Finales!AA25 -> 
A4: =Finales!D26 -> 09:20:00 | B4: =Voorrondes!E26 -> 00:00:00 | C4: =Finales!G26 -> PC TEAM 3 | D4: =Finales!M26 -> -- | E4: =Finales!N26 -> PD TEAM 4 | F4: =Finales!U26 -> 0 | G4: =Finales!V26 -> -- | H4: =Finales!W26 -> 0 | J4: =Finales!Y26 ->  | L4: =Finales!AA26 -> 
A5: =Finales!D27 -> 09:40:00 | B5: =Voorrondes!E27 -> 00:00:00 | C5: =Finales!G27 -> PE TEAM 5 | D5: =Finales!M27 -> -- | E5: =Finales!N27 -> PA TEAM 1 | F5: =Finales!U27 -> 0 | G5: =Finales!V27 -> -- | H5: =Finales!W27 -> 0 | J5: =Finales!Y27 ->  | L5: =Finales!AA27 -> 
A6: =Finales!D28 -> 10:00:00 | B6: =Voorrondes!E28 -> 00:00:00 | C6: =Finales!G28 -> PB TEAM 1 | D6: =Finales!M28 -> -- | E6: =Finales!N28 -> PC TEAM 3 | F6: =Finales!U28 -> 0 | G6: =Finales!V28 -> -- | H6: =Finales!W28 -> 0 | J6: =Finales!Y28 ->  | L6: =Finales!AA28 -> 
A7: =Finales!D29 -> 10:20:00 | B7: =Voorrondes!E29 -> 00:00:00 | C7: =Finales!G29 -> PE TEAM 5 | D7: =Finales!M29 -> -- | E7: =Finales!N29 -> PD TEAM 4 | F7: =Finales!U29 -> 0 | G7: =Finales!V29 -> -- | H7: =Finales!W29 -> 0 | J7: =Finales!Y29 ->  | L7: =Finales!AA29 -> 
A8: =Finales!D30 -> 10:40:00 | B8: =Voorrondes!E30 -> 00:00:00 | C8: =Finales!G30 -> PA TEAM 1 | D8: =Finales!M30 -> -- | E8: =Finales!N30 -> PC TEAM 3 | F8: =Finales!U30 -> 0 | G8: =Finales!V30 -> -- | H8: =Finales!W30 -> 0 | J8: =Finales!Y30 ->  | L8: =Finales!AA30 -> 
A9: =Finales!D31 -> 11:00:00 | B9: =Voorrondes!E31 -> 00:00:00 | C9: =Finales!G31 -> PB TEAM 1 | D9: =Finales!M31 -> -- | E9: =Finales!N31 -> PE TEAM 5 | F9: =Finales!U31 -> 0 | G9: =Finales!V31 -> -- | H9: =Finales!W31 -> 0 | J9: =Finales!Y31 ->  | L9: =Finales!AA31 -> 
A10: =Finales!D32 -> 11:20:00 | B10: =Voorrondes!E32 -> 00:00:00 | C10: =Finales!G32 -> PD TEAM 4 | D10: =Finales!M32 -> -- | E10: =Finales!N32 -> PA TEAM 1 | F10: =Finales!U32 -> 0 | G10: =Finales!V32 -> -- | H10: =Finales!W32 -> 0 | J10: =Finales!Y32 ->  | L10: =Finales!AA32 -> 
A11: =Finales!D33 -> 11:40:00 | B11: =Voorrondes!E33 -> 00:00:00 | C11: =Finales!G33 -> PC TEAM 3 | D11: =Finales!M33 -> -- | E11: =Finales!N33 -> PE TEAM 5 | F11: =Finales!U33 -> 0 | G11: =Finales!V33 -> -- | H11: =Finales!W33 -> 0 | J11: =Finales!Y33 ->  | L11: =Finales!AA33 -> 
A12: =Finales!D34 -> 12:00:00 | B12: =Voorrondes!E34 -> 00:00:00 | C12: =Finales!G34 -> PD TEAM 4 | D12: =Finales!M34 -> -- | E12: =Finales!N34 -> PB TEAM 1 | F12: =Finales!U34 -> 0 | G12: =Finales!V34 -> -- | H12: =Finales!W34 -> 0 | J12: =Finales!Y34 ->  | L12: =Finales!AA34 -> 
A15: =Finales!AD3 -> Stand | B15: =Finales!AE5 -> Poule C | F15: Voor | G15: Tegen | H15: Punten | I15: =Finales!AN3 -> Gewonnen | J15: =Finales!AO3 -> Gelijk | K15: =Finales!AP3 -> Verloren | L15: =Finales!AQ3 -> Saldo
A16: 1 | B16: =VLOOKUP(A16,Finales!$AD$6:$AQ$10,2,FALSE) -> PA TEAM 1 | F16: =VLOOKUP($A16,Finales!$AD$6:$AQ$10,8,FALSE) -> 0 | G16: =VLOOKUP($A16,Finales!$AD$6:$AQ$10,9,FALSE) -> 0 | H16: =VLOOKUP($A16,Finales!$AD$6:$AQ$10,10,FALSE) -> 0 | I16: =VLOOKUP($A16,Finales!$AD$6:$AQ$10,11,FALSE) -> 0 | J16: =VLOOKUP($A16,Finales!$AD$6:$AQ$10,12,FALSE) -> 0 | K16: =VLOOKUP($A16,Finales!$AD$6:$AQ$10,13,FALSE) -> 0 | L16: =VLOOKUP($A16,Finales!$AD$6:$AQ$10,14,FALSE) -> 0
A17: 2 | B17: =VLOOKUP(A17,Finales!$AD$6:$AQ$10,2,FALSE) ->  | F17: =VLOOKUP($A17,Finales!$AD$6:$AQ$10,8,FALSE) ->  | G17: =VLOOKUP($A17,Finales!$AD$6:$AQ$10,9,FALSE) ->  | H17: =VLOOKUP($A17,Finales!$AD$6:$AQ$10,10,FALSE) ->  | I17: =VLOOKUP($A17,Finales!$AD$6:$AQ$10,11,FALSE) ->  | J17: =VLOOKUP($A17,Finales!$AD$6:$AQ$10,12,FALSE) ->  | K17: =VLOOKUP($A17,Finales!$AD$6:$AQ$10,13,FALSE) ->  | L17: =VLOOKUP($A17,Finales!$AD$6:$AQ$10,14,FALSE) -> 
A18: 3 | B18: =VLOOKUP(A18,Finales!$AD$6:$AQ$10,2,FALSE) ->  | F18: =VLOOKUP($A18,Finales!$AD$6:$AQ$10,8,FALSE) ->  | G18: =VLOOKUP($A18,Finales!$AD$6:$AQ$10,9,FALSE) ->  | H18: =VLOOKUP($A18,Finales!$AD$6:$AQ$10,10,FALSE) ->  | I18: =VLOOKUP($A18,Finales!$AD$6:$AQ$10,11,FALSE) ->  | J18: =VLOOKUP($A18,Finales!$AD$6:$AQ$10,12,FALSE) ->  | K18: =VLOOKUP($A18,Finales!$AD$6:$AQ$10,13,FALSE) ->  | L18: =VLOOKUP($A18,Finales!$AD$6:$AQ$10,14,FALSE) -> 
A19: 4 | B19: =VLOOKUP(A19,Finales!$AD$6:$AQ$10,2,FALSE) ->  | F19: =VLOOKUP($A19,Finales!$AD$6:$AQ$10,8,FALSE) ->  | G19: =VLOOKUP($A19,Finales!$AD$6:$AQ$10,9,FALSE) ->  | H19: =VLOOKUP($A19,Finales!$AD$6:$AQ$10,10,FALSE) ->  | I19: =VLOOKUP($A19,Finales!$AD$6:$AQ$10,11,FALSE) ->  | J19: =VLOOKUP($A19,Finales!$AD$6:$AQ$10,12,FALSE) ->  | K19: =VLOOKUP($A19,Finales!$AD$6:$AQ$10,13,FALSE) ->  | L19: =VLOOKUP($A19,Finales!$AD$6:$AQ$10,14,FALSE) -> 
A20: 5 | B20: =VLOOKUP(A20,Finales!$AD$6:$AQ$10,2,FALSE) ->  | F20: =VLOOKUP($A20,Finales!$AD$6:$AQ$10,8,FALSE) ->  | G20: =VLOOKUP($A20,Finales!$AD$6:$AQ$10,9,FALSE) ->  | H20: =VLOOKUP($A20,Finales!$AD$6:$AQ$10,10,FALSE) ->  | I20: =VLOOKUP($A20,Finales!$AD$6:$AQ$10,11,FALSE) ->  | J20: =VLOOKUP($A20,Finales!$AD$6:$AQ$10,12,FALSE) ->  | K20: =VLOOKUP($A20,Finales!$AD$6:$AQ$10,13,FALSE) ->  | L20: =VLOOKUP($A20,Finales!$AD$6:$AQ$10,14,FALSE) -> 

Sheet FGROEP-4
A1: Finale ronde Beste nummers 4 | M1: SCORES BY: OnlineExcelCursus.NL
A2: =Finales!AC24 -> Tijd | B2: =Voorrondes!AD24 -> 0 | C2: =Finales!AF24 -> VELD 4 | F2: =Finales!AT24 -> Uitslag | G2: =Voorrondes!AU24 -> 0 | H2: =Voorrondes!AV24 -> 0 | J2: =Finales!AX24 -> Punten | K2: =Voorrondes!AY24 -> 0 | L2: =Voorrondes!AZ24 -> 0
A3: =Finales!AC25 -> 09:00:00 | B3: =Voorrondes!AD25 -> 00:00:00 | C3: =Finales!AF25 -> PA TEAM 5 | D3: =Finales!AL25 -> -- | E3: =Finales!AM25 -> PB TEAM 3 | F3: =Finales!AT25 -> 0 | G3: =Finales!AU25 -> -- | H3: =Finales!AV25 -> 0 | J3: =Finales!AX25 ->  | L3: =Finales!AZ25 -> 
A4: =Finales!AC26 -> 09:20:00 | B4: =Voorrondes!AD26 -> 00:00:00 | C4: =Finales!AF26 -> PC TEAM 2 | D4: =Finales!AL26 -> -- | E4: =Finales!AM26 -> PD TEAM 1 | F4: =Finales!AT26 -> 0 | G4: =Finales!AU26 -> -- | H4: =Finales!AV26 -> 0 | J4: =Finales!AX26 ->  | L4: =Finales!AZ26 -> 
A5: =Finales!AC27 -> 09:40:00 | B5: =Voorrondes!AD27 -> 00:00:00 | C5: =Finales!AF27 -> PE TEAM 2 | D5: =Finales!AL27 -> -- | E5: =Finales!AM27 -> PA TEAM 5 | F5: =Finales!AT27 -> 0 | G5: =Finales!AU27 -> -- | H5: =Finales!AV27 -> 0 | J5: =Finales!AX27 ->  | L5: =Finales!AZ27 -> 
A6: =Finales!AC28 -> 10:00:00 | B6: =Voorrondes!AD28 -> 00:00:00 | C6: =Finales!AF28 -> PB TEAM 3 | D6: =Finales!AL28 -> -- | E6: =Finales!AM28 -> PC TEAM 2 | F6: =Finales!AT28 -> 0 | G6: =Finales!AU28 -> -- | H6: =Finales!AV28 -> 0 | J6: =Finales!AX28 ->  | L6: =Finales!AZ28 -> 
A7: =Finales!AC29 -> 10:20:00 | B7: =Voorrondes!AD29 -> 00:00:00 | C7: =Finales!AF29 -> PE TEAM 2 | D7: =Finales!AL29 -> -- | E7: =Finales!AM29 -> PD TEAM 1 | F7: =Finales!AT29 -> 0 | G7: =Finales!AU29 -> -- | H7: =Finales!AV29 -> 0 | J7: =Finales!AX29 ->  | L7: =Finales!AZ29 -> 
A8: =Finales!AC30 -> 10:40:00 | B8: =Voorrondes!AD30 -> 00:00:00 | C8: =Finales!AF30 -> PA TEAM 5 | D8: =Finales!AL30 -> -- | E8: =Finales!AM30 -> PC TEAM 2 | F8: =Finales!AT30 -> 0 | G8: =Finales!AU30 -> -- | H8: =Finales!AV30 -> 0 | J8: =Finales!AX30 ->  | L8: =Finales!AZ30 -> 
A9: =Finales!AC31 -> 11:00:00 | B9: =Voorrondes!AD31 -> 00:00:00 | C9: =Finales!AF31 -> PB TEAM 3 | D9: =Finales!AL31 -> -- | E9: =Finales!AM31 -> PE TEAM 2 | F9: =Finales!AT31 -> 0 | G9: =Finales!AU31 -> -- | H9: =Finales!AV31 -> 0 | J9: =Finales!AX31 ->  | L9: =Finales!AZ31 -> 
A10: =Finales!AC32 -> 11:20:00 | B10: =Voorrondes!AD32 -> 00:00:00 | C10: =Finales!AF32 -> PD TEAM 1 | D10: =Finales!AL32 -> -- | E10: =Finales!AM32 -> PA TEAM 5 | F10: =Finales!AT32 -> 0 | G10: =Finales!AU32 -> -- | H10: =Finales!AV32 -> 0 | J10: =Finales!AX32 ->  | L10: =Finales!AZ32 -> 
A11: =Finales!AC33 -> 11:40:00 | B11: =Voorrondes!AD33 -> 00:00:00 | C11: =Finales!AF33 -> PC TEAM 2 | D11: =Finales!AL33 -> -- | E11: =Finales!AM33 -> PE TEAM 2 | F11: =Finales!AT33 -> 0 | G11: =Finales!AU33 -> -- | H11: =Finales!AV33 -> 0 | J11: =Finales!AX33 ->  | L11: =Finales!AZ33 -> 
A12: =Finales!AC34 -> 12:00:00 | B12: =Voorrondes!AD34 -> 00:00:00 | C12: =Finales!AF34 -> PD TEAM 1 | D12: =Finales!AL34 -> -- | E12: =Finales!AM34 -> PB TEAM 3 | F12: =Finales!AT34 -> 0 | G12: =Finales!AU34 -> -- | H12: =Finales!AV34 -> 0 | J12: =Finales!AX34 ->  | L12: =Finales!AZ34 -> 
A15: =Finales!AR3 -> Stand | B15: =Finales!AS5 -> Poule D | F15: Voor | G15: Tegen | H15: Punten | I15: =Finales!BB3 -> Gewonnen | J15: =Finales!BC3 -> Gelijk | K15: =Finales!BD3 -> Verloren | L15: =Finales!BE3 -> Saldo
A16: 1 | B16: =VLOOKUP(A16,Finales!$AR$6:$BE$10,2,FALSE) -> PA TEAM 5 | F16: =VLOOKUP($A16,Finales!$AR$6:$BE$10,8,FALSE) -> 0 | G16: =VLOOKUP($A16,Finales!$AR$6:$BE$10,9,FALSE) -> 0 | H16: =VLOOKUP($A16,Finales!$AR$6:$BE$10,10,FALSE) -> 0 | I16: =VLOOKUP($A16,Finales!$AR$6:$BE$10,11,FALSE) -> 0 | J16: =VLOOKUP($A16,Finales!$AR$6:$BE$10,12,FALSE) -> 0 | K16: =VLOOKUP($A16,Finales!$AR$6:$BE$10,13,FALSE) -> 0 | L16: =VLOOKUP($A16,Finales!$AR$6:$BE$10,14,FALSE) -> 0
A17: 2 | B17: =VLOOKUP(A17,Finales!$AR$6:$BE$10,2,FALSE) ->  | F17: =VLOOKUP($A17,Finales!$AR$6:$BE$10,8,FALSE) ->  | G17: =VLOOKUP($A17,Finales!$AR$6:$BE$10,9,FALSE) ->  | H17: =VLOOKUP($A17,Finales!$AR$6:$BE$10,10,FALSE) ->  | I17: =VLOOKUP($A17,Finales!$AR$6:$BE$10,11,FALSE) ->  | J17: =VLOOKUP($A17,Finales!$AR$6:$BE$10,12,FALSE) ->  | K17: =VLOOKUP($A17,Finales!$AR$6:$BE$10,13,FALSE) ->  | L17: =VLOOKUP($A17,Finales!$AR$6:$BE$10,14,FALSE) -> 
A18: 3 | B18: =VLOOKUP(A18,Finales!$AR$6:$BE$10,2,FALSE) ->  | F18: =VLOOKUP($A18,Finales!$AR$6:$BE$10,8,FALSE) ->  | G18: =VLOOKUP($A18,Finales!$AR$6:$BE$10,9,FALSE) ->  | H18: =VLOOKUP($A18,Finales!$AR$6:$BE$10,10,FALSE) ->  | I18: =VLOOKUP($A18,Finales!$AR$6:$BE$10,11,FALSE) ->  | J18: =VLOOKUP($A18,Finales!$AR$6:$BE$10,12,FALSE) ->  | K18: =VLOOKUP($A18,Finales!$AR$6:$BE$10,13,FALSE) ->  | L18: =VLOOKUP($A18,Finales!$AR$6:$BE$10,14,FALSE) -> 
A19: 4 | B19: =VLOOKUP(A19,Finales!$AR$6:$BE$10,2,FALSE) ->  | F19: =VLOOKUP($A19,Finales!$AR$6:$BE$10,8,FALSE) ->  | G19: =VLOOKUP($A19,Finales!$AR$6:$BE$10,9,FALSE) ->  | H19: =VLOOKUP($A19,Finales!$AR$6:$BE$10,10,FALSE) ->  | I19: =VLOOKUP($A19,Finales!$AR$6:$BE$10,11,FALSE) ->  | J19: =VLOOKUP($A19,Finales!$AR$6:$BE$10,12,FALSE) ->  | K19: =VLOOKUP($A19,Finales!$AR$6:$BE$10,13,FALSE) ->  | L19: =VLOOKUP($A19,Finales!$AR$6:$BE$10,14,FALSE) -> 
A20: 5 | B20: =VLOOKUP(A20,Finales!$AR$6:$BE$10,2,FALSE) ->  | F20: =VLOOKUP($A20,Finales!$AR$6:$BE$10,8,FALSE) ->  | G20: =VLOOKUP($A20,Finales!$AR$6:$BE$10,9,FALSE) ->  | H20: =VLOOKUP($A20,Finales!$AR$6:$BE$10,10,FALSE) ->  | I20: =VLOOKUP($A20,Finales!$AR$6:$BE$10,11,FALSE) ->  | J20: =VLOOKUP($A20,Finales!$AR$6:$BE$10,12,FALSE) ->  | K20: =VLOOKUP($A20,Finales!$AR$6:$BE$10,13,FALSE) ->  | L20: =VLOOKUP($A20,Finales!$AR$6:$BE$10,14,FALSE) -> 

Sheet FGROEP-5
A1: Finale ronde Beste nummers 5 | M1: SCORES BY: OnlineExcelCursus.NL
A2: =Finales!AC24 -> Tijd | B2: =Voorrondes!AD24 -> 0 | C2: =Finales!AF24 -> VELD 4 | F2: =Finales!AT24 -> Uitslag | G2: =Voorrondes!AU24 -> 0 | H2: =Voorrondes!AV24 -> 0 | J2: =Finales!AX24 -> Punten | K2: =Voorrondes!AY24 -> 0 | L2: =Voorrondes!AZ24 -> 0
A3: =Finales!D38 -> 09:00:00 | B3: =Voorrondes!AD25 -> 00:00:00 | C3: =Finales!G38 -> PA TEAM 2 | D3: =Finales!AL25 -> -- | E3: =Finales!N38 -> PB TEAM 5 | F3: =Finales!U38 -> 0 | G3: =Finales!AU25 -> -- | H3: =Finales!W38 -> 0 | J3: =Finales!Y38 ->  | L3: =Finales!AA38 -> 
A4: =Finales!D39 -> 09:20:00 | B4: =Voorrondes!AD26 -> 00:00:00 | C4: =Finales!G39 -> PC TEAM 4 | D4: =Finales!AL26 -> -- | E4: =Finales!N39 -> PD TEAM 2 | F4: =Finales!U39 -> 0 | G4: =Finales!AU26 -> -- | H4: =Finales!W39 -> 0 | J4: =Finales!Y39 ->  | L4: =Finales!AA39 -> 
A5: =Finales!D40 -> 09:40:00 | B5: =Voorrondes!AD27 -> 00:00:00 | C5: =Finales!G40 -> PE TEAM 1 | D5: =Finales!AL27 -> -- | E5: =Finales!N40 -> PA TEAM 2 | F5: =Finales!U40 -> 0 | G5: =Finales!AU27 -> -- | H5: =Finales!W40 -> 0 | J5: =Finales!Y40 ->  | L5: =Finales!AA40 -> 
A6: =Finales!D41 -> 10:00:00 | B6: =Voorrondes!AD28 -> 00:00:00 | C6: =Finales!G41 -> PB TEAM 5 | D6: =Finales!AL28 -> -- | E6: =Finales!N41 -> PC TEAM 4 | F6: =Finales!U41 -> 0 | G6: =Finales!AU28 -> -- | H6: =Finales!W41 -> 0 | J6: =Finales!Y41 ->  | L6: =Finales!AA41 -> 
A7: =Finales!D42 -> 10:20:00 | B7: =Voorrondes!AD29 -> 00:00:00 | C7: =Finales!G42 -> PE TEAM 1 | D7: =Finales!AL29 -> -- | E7: =Finales!N42 -> PD TEAM 2 | F7: =Finales!U42 -> 0 | G7: =Finales!AU29 -> -- | H7: =Finales!W42 -> 0 | J7: =Finales!Y42 ->  | L7: =Finales!AA42 -> 
A8: =Finales!D43 -> 10:40:00 | B8: =Voorrondes!AD30 -> 00:00:00 | C8: =Finales!G43 -> PA TEAM 2 | D8: =Finales!AL30 -> -- | E8: =Finales!N43 -> PC TEAM 4 | F8: =Finales!U43 -> 0 | G8: =Finales!AU30 -> -- | H8: =Finales!W43 -> 0 | J8: =Finales!Y43 ->  | L8: =Finales!AA43 -> 
A9: =Finales!D44 -> 11:00:00 | B9: =Voorrondes!AD31 -> 00:00:00 | C9: =Finales!G44 -> PB TEAM 5 | D9: =Finales!AL31 -> -- | E9: =Finales!N44 -> PE TEAM 1 | F9: =Finales!U44 -> 0 | G9: =Finales!AU31 -> -- | H9: =Finales!W44 -> 0 | J9: =Finales!Y44 ->  | L9: =Finales!AA44 -> 
A10: =Finales!D45 -> 11:20:00 | B10: =Voorrondes!AD32 -> 00:00:00 | C10: =Finales!G45 -> PD TEAM 2 | D10: =Finales!AL32 -> -- | E10: =Finales!N45 -> PA TEAM 2 | F10: =Finales!U45 -> 0 | G10: =Finales!AU32 -> -- | H10: =Finales!W45 -> 0 | J10: =Finales!Y45 ->  | L10: =Finales!AA45 -> 
A11: =Finales!D46 -> 11:40:00 | B11: =Voorrondes!AD33 -> 00:00:00 | C11: =Finales!G46 -> PC TEAM 4 | D11: =Finales!AL33 -> -- | E11: =Finales!N46 -> PE TEAM 1 | F11: =Finales!U46 -> 0 | G11: =Finales!AU33 -> -- | H11: =Finales!W46 -> 0 | J11: =Finales!Y46 ->  | L11: =Finales!AA46 -> 
A12: =Finales!D47 -> 12:00:00 | B12: =Voorrondes!AD34 -> 00:00:00 | C12: =Finales!G47 -> PD TEAM 2 | D12: =Finales!AL34 -> -- | E12: =Finales!N47 -> PB TEAM 5 | F12: =Finales!U47 -> 0 | G12: =Finales!AU34 -> -- | H12: =Finales!W47 -> 0 | J12: =Finales!Y47 ->  | L12: =Finales!AA47 -> 
A15: =Finales!AR3 -> Stand | B15: =Finales!BG5 -> Poule E | F15: Voor | G15: Tegen | H15: Punten | I15: =Finales!BB3 -> Gewonnen | J15: =Finales!BC3 -> Gelijk | K15: =Finales!BD3 -> Verloren | L15: =Finales!BE3 -> Saldo
A16: 1 | B16: =VLOOKUP(A16,Finales!$BF$6:$BS$10,2,FALSE) -> PA TEAM 2 | F16: =VLOOKUP($A16,Finales!$BF$6:$BS$10,8,FALSE) -> 0 | G16: =VLOOKUP($A16,Finales!$BF$6:$BS$10,9,FALSE) -> 0 | H16: =VLOOKUP($A16,Finales!$BF$6:$BS$10,10,FALSE) -> 0 | I16: =VLOOKUP($A16,Finales!$BF$6:$BS$10,11,FALSE) -> 0 | J16: =VLOOKUP($A16,Finales!$BF$6:$BS$10,12,FALSE) -> 0 | K16: =VLOOKUP($A16,Finales!$BF$6:$BS$10,13,FALSE) -> 0 | L16: =VLOOKUP($A16,Finales!$BF$6:$BS$10,14,FALSE) -> 0
A17: 2 | B17: =VLOOKUP(A17,Finales!$BF$6:$BS$10,2,FALSE) ->  | F17: =VLOOKUP($A17,Finales!$BF$6:$BS$10,8,FALSE) ->  | G17: =VLOOKUP($A17,Finales!$BF$6:$BS$10,9,FALSE) ->  | H17: =VLOOKUP($A17,Finales!$BF$6:$BS$10,10,FALSE) ->  | I17: =VLOOKUP($A17,Finales!$BF$6:$BS$10,11,FALSE) ->  | J17: =VLOOKUP($A17,Finales!$BF$6:$BS$10,12,FALSE) ->  | K17: =VLOOKUP($A17,Finales!$BF$6:$BS$10,13,FALSE) ->  | L17: =VLOOKUP($A17,Finales!$BF$6:$BS$10,14,FALSE) -> 
A18: 3 | B18: =VLOOKUP(A18,Finales!$BF$6:$BS$10,2,FALSE) ->  | F18: =VLOOKUP($A18,Finales!$BF$6:$BS$10,8,FALSE) ->  | G18: =VLOOKUP($A18,Finales!$BF$6:$BS$10,9,FALSE) ->  | H18: =VLOOKUP($A18,Finales!$BF$6:$BS$10,10,FALSE) ->  | I18: =VLOOKUP($A18,Finales!$BF$6:$BS$10,11,FALSE) ->  | J18: =VLOOKUP($A18,Finales!$BF$6:$BS$10,12,FALSE) ->  | K18: =VLOOKUP($A18,Finales!$BF$6:$BS$10,13,FALSE) ->  | L18: =VLOOKUP($A18,Finales!$BF$6:$BS$10,14,FALSE) -> 
A19: 4 | B19: =VLOOKUP(A19,Finales!$BF$6:$BS$10,2,FALSE) ->  | F19: =VLOOKUP($A19,Finales!$BF$6:$BS$10,8,FALSE) ->  | G19: =VLOOKUP($A19,Finales!$BF$6:$BS$10,9,FALSE) ->  | H19: =VLOOKUP($A19,Finales!$BF$6:$BS$10,10,FALSE) ->  | I19: =VLOOKUP($A19,Finales!$BF$6:$BS$10,11,FALSE) ->  | J19: =VLOOKUP($A19,Finales!$BF$6:$BS$10,12,FALSE) ->  | K19: =VLOOKUP($A19,Finales!$BF$6:$BS$10,13,FALSE) ->  | L19: =VLOOKUP($A19,Finales!$BF$6:$BS$10,14,FALSE) -> 
A20: 5 | B20: =VLOOKUP(A20,Finales!$BF$6:$BS$10,2,FALSE) ->  | F20: =VLOOKUP($A20,Finales!$BF$6:$BS$10,8,FALSE) ->  | G20: =VLOOKUP($A20,Finales!$BF$6:$BS$10,9,FALSE) ->  | H20: =VLOOKUP($A20,Finales!$BF$6:$BS$10,10,FALSE) ->  | I20: =VLOOKUP($A20,Finales!$BF$6:$BS$10,11,FALSE) ->  | J20: =VLOOKUP($A20,Finales!$BF$6:$BS$10,12,FALSE) ->  | K20: =VLOOKUP($A20,Finales!$BF$6:$BS$10,13,FALSE) ->  | L20: =VLOOKUP($A20,Finales!$BF$6:$BS$10,14,FALSE) -> 
